{"text_format":"1","workbook":"xlsx","n_sheets":4,"sheets":["Absolútne poradie","MA","MB","ŽA"],"not_rendered":{"charts":0,"images":4,"macros":1,"external_links":0,"defined_names":3,"comments":0,"pivot_tables":0},"unopened":[],"bounds":{"document_bytes":16777216,"sheet_cells":100000,"rows_first":2000,"rows_last":500,"rows_between":2000,"halvings":0,"cell_chars":16384,"cell_head_chars":4096},"cells_cut":0,"cells_raw":0,"read":"whole","date_system":"1900"}

{"sheet":"Absolútne poradie","index":0,"n_rows":214,"n_cols":19,"rows_kept":214,"cut":false,"hidden":false,"merged":[[0,3,2,5],[0,0,4,2],[5,0,9,2],[6,3,6,5],[0,6,4,8],[5,6,9,8],[9,3,9,5],[8,3,8,5],[7,3,7,5],[3,3,5,5]]}
[null,null,null,"VÝSLEDKY"]
[]
[]
[null,null,null,"Tatranská šelma VERTICAL 2016"]
[]
[]
[null,null,null,"štart: Starý Smokovec (1025mnm): polooblačno 10°"]
[null,null,null,"cieľ: Slavkovský štít (2452mnm): jasno 19°"]
[null,null,null,"30. júla 2016 - 7km/1400m+"]
[null,null,null,"vyhotovil: Matúš Vnenčák"]
["Poradie","Kateg.","Št.č.","Priezvisko a meno                                          ","Rok nar.","Klub                                   ","Národn.","Čas","Rozdiel",null,null,"Vitaz"]
["Overall","Categ.","St.n","Surname and name","Year of b.","Club","Nation.","Time","Differ.",null,null,"01:04:06"]
["1.","MA","59.","Hlavčo Jozef",1985,"DYNAFIT","SVK","01:04:06",{"$f":"H13-$L$12","v":"00:00:00"},null,null,null,"1.","Nyéki","Jakub","SVK",1997,"MA","Veľká Lomnica"]
["2.","MA","139.","Paulen Andrej",1994,"Žilina","SVK","01:05:20",{"$f":"H14-$L$12","v":"00:01:14"},null,null,null,"2.","Adamcová","Mária","SVK",null,"ŽA","Žaškov"]
["3.","MA","207.","Hraško Miroslav",1990,"VSC Dukla","SVK","01:08:30","00:04:24",null,null,null,"3.","Adámek","Michal","SVK",1981,"MA","SE Predaj"]
["4.","MA","171.","Šiarnik Jakub",1994,"TJ Družba Smrečany","SVK","01:08:45","00:04:39",null,null,null,"4.","Alexandrov","Vladimír","SVK",1986,"MA","IshYoBoy.com"]
["5.","MA","98.","Krawczyk Pawel",1977,"Kraków","POL","01:09:13","00:05:07",null,null,null,"5.","Ambrož","Jan","CZE",1986,"MA","Booty Swing"]
["6.","MA","143.","Petrovič Matej",1995,"LK Opalisko Závažná","SVK","01:09:30","00:05:24",null,null,null,"6.","Bačík","Kristián","SVK",1991,"MA","Andorinhas"]
["7.","MA","114.","Rzeszotko Marcin",1990,"KW Zakopane/TOPR","POL","01:10:45","00:06:39",null,null,null,"7.","Balász","József","HUN",1973,"MB","Mountain Hippy"]
["8.","MA","28.","Ďurmek Ján",1978,"Valaská Belá","SVK","01:11:04","00:06:58",null,null,null,"8.","Balážik","Martin","SVK",1983,"MA","La Putika"]
["9.","MA","158.","Senčák Martin",1990,"ProSport Team Košice","SVK","01:11:41","00:07:35",null,null,null,"9.","Barnoky","Jan","CZE",1982,"MA","Ľubotice"]
["10.","MB","112.","Longauer Zdeno",1972,"Krizna krizom krazom","SVK","01:11:48","00:07:42",null,null,null,"10.","Baronova","Iva","CZE",1977,"ŽA","Team P&G"]
["11.","MA","103.","Krzeminski Jerzy",1987,null,"POL","01:13:29","00:09:23",null,null,null,"11.","Belak","Lukas","SVK",1987,"MA","Roznava"]
["12.","MA","41.","Galicz Karol",1986,"BKS Wataha Warszawa","POL","01:14:33","00:10:27",null,null,null,"12.","Belica","Peter","SVK",1992,"MA","Dolné Orešany"]
["13.","MA","152.","Rajniak Michal",1989,"Extreme obstacle runners","SVK","01:15:50","00:11:44",null,null,null,"13.","Beňo","Milan","SVK",1980,"MA","SLOVNAFT"]
["14.","MA","204.","Kalman Peter",1983,"Kráľova hoľa","SVK","01:15:51","00:11:45",null,null,null,"14.","Bíreš","Matúš","SVK",1989,"MA","MKL Kremnica"]
["15.","MA","35.","Forgáč Matúš",1982,"DnV","SVK","01:17:20","00:13:14",null,null,null,"15.","Bothár","Ivan","SVK",1962,"MB","Zvolen"]
["16.","MA","1.","Nyéki Jakub",1997,"Veľká Lomnica","SVK","01:18:19","00:14:13",null,null,null,"16.","BRATKO","Peter","SVK",1986,"MA","Veľká Lehota"]
["17.","MA","123.","Mitala Jozef",1989,"Partizánske","SVK","01:18:48","00:14:42",null,null,null,"17.","Brna","Silvia","SVK",1981,"ŽA","Sakura Wakelake"]
["18.","MA","82.","Jurečka Matúš",1991,"Závažná Poruba","SVK","01:19:17","00:15:11",null,null,null,"18.","Brodnan","Ludovit","SVK",1959,"MB","Kovo Stránske"]
["19.","MA","109.","Lajcha Michal",1984,"TJ Ostrý Grúň","SVK","01:19:44","00:15:38",null,null,null,"19.","Brtva","Pavel","CZE",1994,"MA","Frenštát p. R."]
["20.","MA","206.","Kovaľ Martin",1985,"Vitalcity.sk","SVK","01:20:15","00:16:09",null,null,null,"20.","Buckulčík","Ivan","SVK",1994,"MA","Zákamenné"]
["21.","MA","16.","BRATKO Peter",1986,"Veľká Lehota","SVK","01:20:31","00:16:25",null,null,null,"21.","Buchal","Vladimír","SVK",1963,"MB","MŠK-AK Žiar nad Hronom"]
["22.","MA","81.","Jurčo Michal",1989,"Spišská Belá","SVK","01:21:00","00:16:54",null,null,null,"22.","Cesnak","Jakub","SVK",1987,"MA","Bratislava"]
["23.","MA","57.","Henček Emil",1992,"Active life","SVK","01:21:14","00:17:08",null,null,null,"23.","Čtvrtečka","Roman","CZE",1984,"MA","Nový Jičín"]
["24.","MA","154.","Řepa Vojtěch",1995,"Bohumín","CZE","01:21:24","00:17:18",null,null,null,"24.","Delingerová","Marie","CZE",1976,"ŽA","Šternberk"]
["25.","MA","51.","Hajduk Piotr",1987,"Kraków","POL","01:21:30","00:17:24",null,null,null,"25.","Dindoffer","Rene","SVK",1980,"MA","Poprad"]
["26.","MA","168.","Sustr Jan",1978,"Hk Zula","SVK","01:21:32","00:17:26",null,null,null,"26.","Dombrovský","Lukáš","SVK",1993,"MA","Košice"]
["27.","MA","162.","Stehlik Jan",1985,"DETVA","SVK","01:21:43","00:17:37",null,null,null,"27.","Ďurčo","Dominik","SVK",1997,"MA","Banská Bystrica"]
["28.","MA","122.","Milata Patrik",1988,"Extreme Obstacle Runners","SVK","01:22:37","00:18:31",null,null,null,"28.","Ďurmek","Ján","SVK",1978,"MA","Valaská Belá"]
["29.","MA","84.","Káčer Juraj",1990,"Horská služba Malá Fatra","SVK","01:22:49","00:18:43",null,null,null,"29.","Dvorštiak","Dalibor","SVK",1970,"MB","Ružomberok"]
["30.","MA","97.","Kouřil Jaroslav",1980,"neběžecký kroužek","CZE","01:23:04","00:18:58",null,null,null,"30.","Dzugan","Peter","SVK",1976,"MB","Tatranska Polianka"]
["31.","MA","129.","Oceľ Marek",1984,"Dunajska Luzna","SVK","01:23:06","00:19:00",null,null,null,"31.","Falat","Zdenko","SVK",1998,"MA","Košice"]
["32.","MA","62.","Hrdina Libor",1979,"Děhylov","CZE","01:23:10","00:19:04",null,null,null,"32.","Farkaš","Andrej","SVK",1991,"MA","BERHNOHY.sk"]
["33.","MA","132.","Ovsak Matus",1987,"2-3 F","SVK","01:23:14","00:19:08",null,null,null,"33.","Faťun","Pavol","SVK",1979,"MA","Poprad"]
["34.","MB","107.","Kujalanskas Vadim",1971,"Visegrad Maraton Rytro","POL","01:23:28",{"$f":"H46-$L$12","v":"00:19:22"},null,null,null,"34.","Fijalka","peter","SVK",1987,"MA","p´art of heart"]
["35.","MA","99.","Krejzlík Tomáš",1990,"Wolfpack Mountain Sports","CZE","01:23:32","00:19:26",null,null,null,"35.","Forgáč","Matúš","SVK",1982,"MA","DnV"]
["36.","MA","182.","Temecki Grzegorz",1981,"Nowy targ","POL","01:23:34","00:19:28",null,null,null,"36.","Forgáčová","Lucia","SVK",1980,"ŽA","Dubodiel"]
["37.","MA","76.","Jankura Adam",1989,"TJ Tatranska Lomnica","SVK","01:23:38","00:19:32",null,null,null,"37.","Franko","Štefan","SVK",1980,"MA","Majláthova chata"]
["38.","MB","86.","Kačmarčík Tomáš",1975,"Šport Rysy -INOV8","SVK","01:23:45","00:19:39",null,null,null,"38.","Fulop","Viktor","SVK",1985,"MA","Nitra"]
["39.","ŽA","24.","Delingerová Marie",1976,"Šternberk","CZE","01:24:13","00:20:07",null,null,null,"39.","Fuňáková","Mária","SVK",1984,"ŽA","Bratislava"]
["40.","MA","11.","Belak Lukas",1987,"Roznava","SVK","01:24:24","00:20:18",null,null,null,"40.","Gajdos","Vlado","SVK",1968,"MB","Prešov"]
["41.","MA","78.","Jaworek Robert",1993,"Bohumín","CZE","01:25:17","00:21:11",null,null,null,"41.","Galicz","Karol","POL",1986,"MA","BKS Wataha Warszawa"]
["42.","MA","53.","Hanecak Marcel",1981,"Bezecky Klub Stara Lubovna","SVK","01:25:44","00:21:38",null,null,null,"42.","Garaj","Pavol","SVK",1986,"MA","Štrba"]
["43.","MA","20.","Buckulčík Ivan",1994,"Zákamenné","SVK","01:25:48","00:21:42",null,null,null,"43.","Gontkovič","Peter","SVK",1991,"MA","Poprad"]
["44.","MB","29.","Dvorštiak Dalibor",1970,"Ružomberok","SVK","01:26:00","00:21:54",null,null,null,"44.","Gorduličová","Lucia","SVK",1980,"ŽA","Polomka"]
["45.","MA","131.","Orság Matej",1987,"ŠK Budimír","SVK","01:26:04","00:21:58",null,null,null,"45.","Gostkowski","Lukasz","POL",1987,"MA","KB GOCH BYTOW"]
["46.","MA","160.","Slavík Jakub",1986,"Strečno","SVK","01:26:12","00:22:06",null,null,null,"46.","Gozdz","Monika","POL",1980,"ŽA","TKN Tatra Team"]
["47.","MA","26.","Dombrovský Lukáš",1993,"Košice","SVK","01:26:36","00:22:30",null,null,null,"47.","Grácik","Eduard","SVK",1958,"MB","HAPPY FEET"]
["48.","MA","178.","Švolík Lukáš",1989,"Zbojnícka chata","SVK","01:27:28","00:23:22",null,null,null,"48.","Greš","Oskar","SVK",1977,"MA","Košice"]
["49.","MA","12.","Belica Peter",1992,"Dolné Orešany","SVK","01:27:30","00:23:24",null,null,null,"49.","Grossmann","Branislav","SVK",1988,"MA","Kremnica"]
["50.","MB","153.","Rysa Michal",1976,"TJ Tatran Gerlachov","SVK","01:27:31","00:23:25",null,null,null,"50.","Grubarek","Dariusz","POL",1969,"MB","SZAFLARY"]
["51.","MA","31.","Falat Zdenko",1998,"Košice","SVK","01:27:32","00:23:26",null,null,null,"51.","Hajduk","Piotr","POL",1987,"MA","Kraków"]
["52.","MA","177.","Šurina Marek",1989,"Útulňa Andrejcová","SVK","01:27:33","00:23:27",null,null,null,"52.","Hanák","Ivan","SVK",1993,"MA","Spišská Belá"]
["53.","MB","79.","Junga Marian",1969,"BK Lysá pod Makytou","SVK","01:27:35","00:23:29",null,null,null,"53.","Hanecak","Marcel","SVK",1981,"MA","Bezecky Klub Stara Lubovna"]
["54.","MB","60.","Hollóši Roman",1968,"Zvolen","SVK","01:27:36","00:23:30",null,null,null,"54.","Hanobik","Martin","SVK",1990,"MA","Zbojnícka chata"]
["55.","MB","21.","Buchal Vladimír",1963,"MŠK-AK Žiar nad Hronom","SVK","01:27:37","00:23:31",null,null,null,"55.","Havrila","Roman","SVK",1980,"MA","bez klubu"]
["56.","ŽA","46.","Gozdz Monika",1980,"TKN Tatra Team","POL","01:28:00","00:23:54",null,null,null,"56.","Heldák","František","SVK",1989,"MA","Spišská Belá"]
["57.","MA","163.","Stohl Richard",1983,"Vranov nad Toplou","SVK","01:28:01","00:23:55",null,null,null,"57.","Henček","Emil","SVK",1992,"MA","Active life"]
["58.","MB","190.","Valocka Milan",1960,"Marathon BB team: Zvolen","SVK","01:28:47","00:24:41",null,null,null,"58.","Hlaváč","Peter","SVK",1974,"MB","Brasko team"]
["59.","MA","149.","Procházka Peter",1987,"Poprad","SVK","01:29:00","00:24:54",null,null,null,"59.","Hlavčo","Jozef","SVK",1985,"MA","DYNAFIT"]
["60.","MA","144.","Pettersson Johan",1982,"Flamingos","SWE","01:29:42","00:25:36",null,null,null,"60.","Hollóši","Roman","SVK",1968,"MB","Zvolen"]
["61.","MB","77.","Jaš Martin",1976,"Tucniaky Zilina","SVK","01:29:53","00:25:47",null,null,null,"61.","Hrabovský","Michal","SVK",1961,"MB","Koškovce"]
["62.","MA","119.","Matas Zbyňek",1982,"Netunice","CZE","01:29:54","00:25:48",null,null,null,"62.","Hrdina","Libor","CZE",1979,"MA","Děhylov"]
["63.","MB","196.","Vybíral Lukáš",1972,"Silný Tým Uničov","CZE","01:30:15","00:26:09",null,null,null,"63.","Hruška","Roman","CZE",1965,"MB","sokol Loučka"]
["64.","MA","56.","Heldák František",1989,"Spišská Belá","SVK","01:30:31","00:26:25",null,null,null,"64.","Hrušková","Jana","SVK",1990,"ŽA","Trenčín"]
["65.","MB","50.","Grubarek Dariusz",1969,"SZAFLARY","POL","01:30:51","00:26:45",null,null,null,"65.","Hubač","Vlado","SVK",1971,"MB","Ski museum Tatranska Lomnica"]
["66.","MA","164.","Stolarczyk Piotr",1979,"Rdzawka","POL","01:30:56",{"$f":"H78-$L$12","v":"00:26:50"},null,null,null,"66.","Hudeček","Milan","SVK",1962,"MB","Run for Fun"]
["67.","MA","106.","Kuchtak Peter",1983,"Zakamenne","SVK","01:31:30","00:27:24",null,null,null,"67.","Hyclak","Vlado","SVK",1962,"MB","Smokovecká kyselka"]
["68.","MA","167.","Surničin Marián",1985,"Bikesport Humenné","SVK","01:31:31","00:27:25",null,null,null,"68.","Chovanec","Lukáš","SVK",1984,"MA","Bratislava"]
["69.","MA","194.","Vlček Milan",1983,"StVPS - veolia - voda","SVK","01:31:38","00:27:32",null,null,null,"69.","Chovanec","Matúš","SVK",1987,"MA","Sveržov"]
["70.","MB","104.","Kubin Ireneusz",1972,"TG Sokół Zakopane","POL","01:31:55","00:27:49",null,null,null,"70.","Chovanová","Monika","SVK",1987,"ŽA","HK James Dolný Kubín"]
["71.","MA","27.","Ďurčo Dominik",1997,"Banská Bystrica","SVK","01:31:56","00:27:50",null,null,null,"71.","Illéš","Martin","SVK",1998,"MA","Spartan Patriot Team Slovakia"]
["72.","MB","145.","Piorecki Michal",1976,"Krakow","POL","01:31:58","00:27:52",null,null,null,"72.","Ivan","Ivo","SVK",1980,"MA","Aj MY sme BEH"]
["73.","MA","85.","Kačmarčík Marek",1977,"Svit","SVK","01:32:00","00:27:54",null,null,null,"73.","Izák","Ondrej","SVK",1989,"MA","Bratislava"]
["74.","MA","43.","Gontkovič Peter",1991,"Poprad","SVK","01:32:19","00:28:13",null,null,null,"74.","Jandúch","Jaroslav","SVK",1974,"MB","Bojnice manín"]
["75.","MA","175.","Šnábl Petr",1984,"Běžecký klub České spořitelny","CZE","01:32:25","00:28:19",null,null,null,"75.","Janek","Tomáš","CZE",1990,"MA","Bojkovice"]
["76.","MA","42.","Garaj Pavol",1986,"Štrba","SVK","01:32:31","00:28:25",null,null,null,"76.","Jankura","Adam","SVK",1989,"MA","TJ Tatranska Lomnica"]
["77.","MA","54.","Hanobik Martin",1990,"Zbojnícka chata","SVK","01:32:34","00:28:28",null,null,null,"77.","Jas","Martin","SVK",1976,"MB","Tucniaky Zilina"]
["78.","MB","47.","Grácik Eduard",1958,"HAPPY FEET","SVK","01:32:51","00:28:45",null,null,null,"78.","Jaworek","Robert","CZE",1993,"MA","Bohumín"]
["79.","MB","126.","Nagy David",1967,"Bratislava","SVK","01:32:57","00:28:51",null,null,null,"79.","Junga","Marian","SVK",1969,"MB","BK Lysá pod Makytou"]
["80.","MB","66.","Hudeček Milan",1962,"Run for Fun","SVK","01:33:08","00:29:02",null,null,null,"80.","Junga","Tomáš","SVK",1990,"MA","Praha"]
["81.","MA","49.","Grossmann Branislav",1988,"Kremnica","SVK","01:33:10","00:29:04",null,null,null,"81.","Jurčo","Michal","SVK",1989,"MA","Spišská Belá"]
["82.","MA","8.","Balážik Martin",1983,"La Putika","SVK","01:33:19","00:29:13",null,null,null,"82.","Jurečka","Matúš","SVK",1991,"MA","Závažná Poruba"]
["83.","MA","19.","Brtva Pavel",1994,"Frenštát p. R.","CZE","01:33:22","00:29:16",null,null,null,"83.","Jurovich","Marian","SVK",1970,"MB","Lupienok GT unstop."]
["84.","ŽA","105.","Kucháriková Michaela",1992,"Liptovský Mikuláš","SVK","01:33:30","00:29:24",null,null,null,"84.","Káčer","Juraj","SVK",1990,"MA","Horská služba Malá Fatra"]
["85.","MB","176.","Šubert Pavel",1974,"horalove","CZE","01:33:31","00:29:25",null,null,null,"85.","Kačmarčík","Marek","SVK",1977,"MA","Svit"]
["86.","MA","183.","Tripšanský Michal",1993,"Spišská Nová Ves","SVK","01:33:32","00:29:26",null,null,null,"86.","Kačmarčík","Tomáš","SVK",1975,"MB","Šport Rysy -INOV8"]
["87.","MA","4.","Alexandrov Vladimír",1986,"IshYoBoy.com","SVK","01:33:52","00:29:46",null,null,null,"87.","Karkoška","Ján","CZE",1978,"MA","Brno"]
["88.","MA","68.","Chovanec Lukáš",1984,"Bratislava","SVK","01:34:13","00:30:07",null,null,null,"88.","Kekeňák","Ondrej","SVK",1976,"MB","Banská Bystrica"]
["89.","MA","73.","Izák Ondrej",1989,"Bratislava","SVK","01:34:25","00:30:19",null,null,null,"89.","Kele","Péter","HUN",1966,"MB","Sálgotarján"]
["90.","MB","58.","Hlaváč Peter",1974,"Brasko team","SVK","01:34:48","00:30:42",null,null,null,"90.","Klobušiaková","Michaela","SVK",1991,"ŽA","Bobrovec"]
["91.","MB","110.","Lesaj Martin",1975,"Festival Horyzonty","SVK","01:34:54","00:30:48",null,null,null,"91.","Klobušník","Peter","SVK",1985,"MA","JAMES SPIŠ"]
["92.","MA","23.","Čtvrtečka Roman",1984,"Nový Jičín","CZE","01:35:14","00:31:08",null,null,null,"92.","Konečný","Dušan","SVK",1978,"MA","SC 1896 Štrbske Pleso"]
["93.","MA","134.","Pagáčik Marek",1978,"Dolný Kubín","SVK","01:35:19","00:31:13",null,null,null,"93.","Kordík","Michael","SVK",1979,"MA","Košice"]
["94.","MA","72.","Ivan Ivo",1980,"Aj MY sme BEH","SVK","01:35:57","00:31:51",null,null,null,"94.","Korytiaková","Katarina","SVK",1994,"ŽA","Útulňa Andrejcová"]
["95.","MA","108.","Laffers Richard",1980,"HO TJ TATRAN SUČANY","SVK","01:36:02","00:31:56",null,null,null,"95.","Kostič","Jozef","SVK",1962,"MB","Revúca"]
["96.","MA","142.","Peterka Tomáš",1985,"Extreme obstacle runners","SVK","01:36:26","00:32:20",null,null,null,"96.","Kotian","Albín","SVK",1969,"MB","La Putika"]
["97.","MB","172.","Šmahlík Radomír",1974,"Ostrava","CZE","01:36:31","00:32:25",null,null,null,"97.","Kouřil","Jaroslav","CZE",1980,"MA","neběžecký kroužek"]
["98.","MA","25.","Dindoffer Rene",1980,"Poprad","SVK","01:36:38",{"$f":"H110-$L$12","v":"00:32:32"},null,null,null,"98.","Krawczyk","Pawel","POL",1977,"MA","Kraków"]
["99.","MA","130.","Orlovský Matúš",1986,"Košice","SVK","01:36:49","00:32:43",null,null,null,"99.","Krejzlík","Tomáš","CZE",1990,"MA","Wolfpack Mountain Sports"]
["100.","MA","5.","Ambrož Jan",1986,"Booty Swing","CZE","01:37:07","00:33:01",null,null,null,"100.","Krchníková","Zuzana","SVK",1991,"ŽA","Bratislava"]
["101.","MA","156.","Sedlák Alfonz",1992,"Olcnava","SVK","01:37:25","00:33:19",null,null,null,"101.","Krška","Vladimír","SVK",1973,"MB","Klub priateľov športu"]
["102.","MA","14.","Bíreš Matúš",1989,"MKL Kremnica","SVK","01:37:28","00:33:22",null,null,null,"102.","Kruppa","Martin","SVK",1980,"MA","KBBS Turčianske Teplice"]
["103.","MB","40.","Gajdos Vlado",1968,"Prešov","SVK","01:37:39","00:33:33",null,null,null,"103.","Krzeminski","Jerzy","POL",1987,"MA"]
["104.","MA","6.","Bačík Kristián",1991,"Andorinhas","SVK","01:37:48","00:33:42",null,null,null,"104.","Kubin","Ireneusz","POL",1972,"MB","TG Sokół Zakopane"]
["105.","MB","159.","Schmidt Miroslav",1972,"MKL Kremnica","SVK","01:37:54","00:33:48",null,null,null,"105.","Kucháriková","Michaela","SVK",1992,"ŽA","Liptovský Mikuláš"]
["106.","MA","169.","Szallay Martin",1990,"Andorinhas","SVK","01:38:05","00:33:59",null,null,null,"106.","Kuchtak","Petre","SVK",1983,"MA","Zakamenne"]
["107.","MA","32.","Farkaš Andrej",1991,"BERHNOHY.sk","SVK","01:38:22","00:34:16",null,null,null,"107.","Kujalanskas","Vadim","POL",1971,"MB","Visegrad Maraton Rytro"]
["108.","MA","166.","Strežo Mike",1990,"Bežecký klub DK","SVK","01:38:38","00:34:32",null,null,null,"108.","Laffers","Richard","SVK",1980,"MA","HO TJ TATRAN SUČANY"]
["109.","ŽA","135.","Pachura Kinga",1976,"Mszana Dolna","POL","01:38:41","00:34:35",null,null,null,"109.","Lajcha","Michal","SVK",1984,"MA","TJ Ostrý Grúň"]
["110.","MB","170.","Szlachtowski Andrzej",1969,"Novy Targ","POL","01:39:12","00:35:06",null,null,null,"110.","Lesaj","Martin","SVK",1975,"MB","Festival Horyzonty"]
["111.","MA","34.","Fijalka peter",1987,"p´art of heart","SVK","01:39:31","00:35:25",null,null,null,"111.","Levocký","Ondrej","SVK",1981,"MA","Batizovce"]
["112.","MA","33.","Faťun Pavol",1979,"Poprad","SVK","01:39:39","00:35:33",null,null,null,"112.","Longauer","Zdeno","SVK",1972,"MB","Krizna krizom krazom"]
["113.","MA","80.","Junga Tomáš",1990,"Praha","SVK","01:39:40","00:35:34",null,null,null,"113.","Lučanský","Patrik","SVK",1993,"MA","Husky Racing Team"]
["114.","MA","48.","Greš Oskar",1977,"Košice","SVK","01:39:55","00:35:49",null,null,null,"114.","Lyjak","Olga","POL",1980,"ŽA","biegamwgorach.pl"]
["115.","MA","127.","Nováčik Martin",1986,"Bratislava","SVK","01:40:23","00:36:17",null,null,null,"115.","Lysák","Radim","CZE",1960,"MB","Ostrava"]
["116.","MA","198.","Zatroch Matej",1978,"Poprad","SVK","01:40:26","00:36:20",null,null,null,"116.","Macku","Milan","CZE",1984,"MA","Team P&G"]
["117.","ŽA","199.","Zelená Marie",1985,"Uherský Brod","CZE","01:40:43","00:36:37",null,null,null,"117.","Maliňák","Tomáš","CZE",1971,"MB","Rožnov"]
["118.","ŽA","136.","Palka Joanna",1988,"BOOT CAMP POLSKA","POL","01:40:56","00:36:50",null,null,null,"118.","Marko","Jozef","SVK",1971,"MB","Prievidza"]
["119.","MA","195.","Vošček Jakub",1994,"Poprad","SVK","01:41:33","00:37:27",null,null,null,"119.","Matas","Zbyňek","CZE",1982,"MA","Netunice"]
["120.","MA","200.","Zelina Milan",1985,"SK PKF","SVK","01:41:43","00:37:37",null,null,null,"120.","Máťuš","Martin","SVK",1989,"MA","ŠK Račišdorf"]
["121.","MA","151.","Radzik Maciej",1986,"Stary Sącz","POL","01:42:30","00:38:24",null,null,null,"121.","Mikuláš","Radovan","SVK",1977,"MA","HK James DK"]
["122.","ŽA","36.","Forgáčová Lucia",1980,"Dubodiel","SVK","01:42:31","00:38:25",null,null,null,"122.","Milata","Patrik","SVK",1988,"MA","Extreme Obstacle Runners"]
["123.","MA","111.","Levocký Ondrej",1981,"Batizovce","SVK","01:42:32","00:38:26",null,null,null,"123.","Mitala","Jozef","SVK",1989,"MA","Partizánske"]
["124.","MB","7.","Balász József",1973,"Mountain Hippy","HUN","01:42:33","00:38:27",null,null,null,"124.","Moravcik","Petr","CZE",1981,"MA","Roznov pod Radh."]
["125.","MA","189.","Urban Tomáš",1987,"pre radosť","SVK","01:42:34","00:38:28",null,null,null,"125.","Múdry","Peter","SVK",1975,"MB","Košice"]
["126.","MA","155.","Sabisz Krzysztof",1987,"Bytow","POL","01:42:35","00:38:29",null,null,null,"126.","Nagy","David","SVK",1967,"MB","Bratislava"]
["127.","MA","141.","Perháč Martin",1985,"Košice","SVK","01:42:36","00:38:30",null,null,null,"127.","Nováčik","Martin","SVK",1986,"MA","Bratislava"]
["128.","MB","88.","Kekeňák Ondrej",1976,"Banská Bystrica","SVK","01:42:37","00:38:31",null,null,null,"128.","Nyeki","Katarína","SVK",1984,"ŽA","Flamingos"]
["129.","MB","118.","Marko Jozef",1971,"Prievidza","SVK","01:42:49","00:38:43",null,null,null,"129.","Oceľ","Marek","SVK",1984,"MA","Dunajska Luzna"]
["130.","MB","117.","Maliňák Tomáš",1971,"Rožnov","CZE","01:42:50",{"$f":"H142-$L$12","v":"00:38:44"},null,null,null,"130.","Orlovský","Matúš","SVK",1986,"MA","Košice"]
["131.","MB","193.","Vlčan Ľudovít",1975,"luvit Partizánske","SVK","01:43:05","00:38:59",null,null,null,"131.","Orság","Matej","SVK",1987,"MA","ŠK Budimír"]
["132.","MA","13.","Beňo Milan",1980,"SLOVNAFT","SVK","01:44:04","00:39:58",null,null,null,"132.","Ovsak","Matus","SVK",1987,"MA","2-3 F"]
["133.","MA","69.","Chovanec Matúš",1987,"Sveržov","SVK","01:44:31","00:40:25",null,null,null,"133.","Pagáč","Michal","SVK",1987,"MA","Poprad"]
["134.","MB","181.","Telička Marek",1972,"Chvalčov","CZE","01:44:40","00:40:34",null,null,null,"134.","Pagáčik","Marek","SVK",1978,"MA","Dolný Kubín"]
["135.","MA","184.","Turčan Jakub",1989,"Hory v trenkách","SVK","01:44:40","00:40:34",null,null,null,"135.","Pachura","Kinga","POL",1976,"ŽA","Mszana Dolna"]
["136.","MA","52.","Hanák Ivan",1993,"Spišská Belá","SVK","01:45:06","00:41:00",null,null,null,"136.","Palka","Joanna","POL",1988,"ŽA","BOOT CAMP POLSKA"]
["137.","ŽA","70.","Chovanová Monika",1987,"HK James Dolný Kubín","SVK","01:45:26","00:41:20",null,null,null,"137.","Pancurák","Jaroslav","SVK",1981,"MA","Vranovské Vydry"]
["138.","MA","161.","Sopka Roman",1978,"Run the World","SVK","01:46:02","00:41:56",null,null,null,"138.","Parreira","Raquel","POR",1993,"ŽA","Andorinhas"]
["139.","ŽA","173.","Šmollová Monika",1993,"Liptovský Mikuláš","SVK","01:46:15","00:42:09",null,null,null,"139.","Paulen","Andrej","SVK",1994,"MA","Žilina"]
["140.","MA","147.","Prčina Ivan",1986,"Dolný Kubín","SVK","01:46:56","00:42:50",null,null,null,"140.","Pazdera","Marek","CZE",1974,"MB","SPORTILION"]
["141.","MA","157.","Sedlář Robin",1983,"Petřvald","CZE","01:47:02","00:42:56",null,null,null,"141.","Perháč","Martin","SVK",1985,"MA","Košice"]
["142.","MA","113.","Lučanský Patrik",1993,"Husky Racing Team","SVK","01:47:15","00:43:09",null,null,null,"142.","Peterka","Tomáš","SVK",1985,"MA","Extreme obstacle runners"]
["143.","ŽA","174.","Šmollová Bibiana",1965,"Liptovský Mikuláš","SVK","01:47:23","00:43:17",null,null,null,"143.","Petrovič","Matej","SVK",1995,"MA","LK Opalisko Závažná"]
["144.","MA","124.","Moravcik Petr",1981,"Roznov pod Radh.","CZE","01:47:42","00:43:36",null,null,null,"144.","Pettersson","Johan","SWE",1982,"MA","Flamingos"]
["145.","MA","93.","Kordík Michael",1979,"Košice","SVK","01:48:31","00:44:25",null,null,null,"145.","Piorecki","Michal","POL",1976,"MB","Krakow"]
["146.","MB","89.","Kele Péter",1966,"Sálgotarján","HUN","01:48:32","00:44:26",null,null,null,"146.","Pisarek","Renata","POL",1970,"ŽA","Krakow"]
["147.","ŽA","64.","Hrušková Jana",1990,"Trenčín","SVK","01:48:38","00:44:32",null,null,null,"147.","Prčina","Ivan","SVK",1986,"MA","Dolný Kubín"]
["148.","MA","9.","Barnoky Jan",1982,"Ľubotice","CZE","01:48:50","00:44:44",null,null,null,"148.","Prieložný","Eduard","SVK",1985,"MA","Žilina"]
["149.","ŽA","146.","Pisarek Renata",1970,"Krakow","POL","01:49:57","00:45:51",null,null,null,"149.","Procházka","Peter","SVK",1987,"MA","Poprad"]
["150.","MA","191.","Vechter Michal",1991,"Východná","SVK","01:49:58","00:45:52",null,null,null,"150.","Pšenica","Július","CZE",1967,"MB","Zlin"]
["151.","MB","125.","Múdry Peter",1975,"Košice","SVK","01:50:07","00:46:01",null,null,null,"151.","Radzik","Maciej","POL",1986,"MA","Stary Sącz"]
["152.","MA","179.","Tajcnár Tomáš",1987,"ŠKP PKF Trnava","SVK","01:50:14","00:46:08",null,null,null,"152.","Rajniak","Michal","SVK",1989,"MB","Extreme obstacle runners"]
["153.","MA","22.","Cesnak Jakub",1987,"Bratislava","SVK","01:50:20","00:46:14",null,null,null,"153.","Rysa","Michal","SVK",1976,"MB","TJ Tatran Gerlachov"]
["154.","MA","55.","Havrila Roman",1980,"bez klubu","SVK","01:50:43","00:46:37",null,null,null,"154.","Řepa","Vojtěch","CZE",1995,"MA","Bohumín"]
["155.","MB","96.","Kotian Albín",1969,"La Putika","SVK","01:51:37","00:47:31",null,null,null,"155.","Sabisz","Krzysztof","POL",1987,"MA","Bytow"]
["156.","MB","101.","Krška Vladimír",1973,"Klub priateľov športu","SVK","01:51:42","00:47:36",null,null,null,"156.","Sedlák","Alfonz","SVK",1992,"MA","Olcnava"]
["157.","MA","180.","Taragel Valér",1988,"Dukla Bratislava","SVK","01:51:48","00:47:42",null,null,null,"157.","Sedlář","Robin","CZE",1983,"MA","Petřvald"]
["158.","ŽA","44.","Gorduličová Lucia",1980,"Polomka","SVK","01:52:11","00:48:05",null,null,null,"158.","Senčák","Martin","SVK",1990,"MA","ProSport Team Košice"]
["159.","MA","148.","Prieložný Eduard",1985,"Žilina","SVK","01:52:27","00:48:21",null,null,null,"159.","Schmidt","Miroslav","SVK",1972,"MB","MKL Kremnica"]
["160.","MA","87.","Karkoška Ján",1978,"Brno","CZE","01:52:30","00:48:24",null,null,null,"160.","Slavík","Jakub","SVK",1986,"MA","Strečno"]
["161.","MB","61.","Hrabovský Michal",1961,"Koškovce","SVK","01:53:04","00:48:58",null,null,null,"161.","Sopka","Roman","SVK",1978,"MA","Run the World"]
["162.","MB","150.","Pšenica Július",1967,"Zlin","CZE","01:53:12",{"$f":"H174-$L$12","v":"00:49:06"},null,null,null,"162.","Stehlik","Jan","SVK",1985,"MA","DETVA"]
["163.","MA","75.","Janek Tomáš",1990,"Bojkovice","CZE","01:53:16","00:49:10",null,null,null,"163.","Stohl","Richard","SVK",1983,"MA","Vranov nad Toplou"]
["164.","MA","187.","Uglaj Petr",1984,"Flamingos","CZE","01:53:52","00:49:46",null,null,null,"164.","Stolarczyk","Piotr","POL",1979,"MA","Rdzawka"]
["165.","ŽA","39.","Fuňáková Mária",1984,"Bratislava","SVK","01:54:42","00:50:36",null,null,null,"165.","Stretavska","Jana","CZE",1991,"ŽA","Flamingos"]
["166.","MA","116.","Valkovič Michal",1984,"Flamingos","SVK","01:55:19","00:51:13",null,null,null,"166.","Strežo","Mike","SVK",1990,"MA","Bežecký klub DK"]
["167.","ŽA","10.","Baronova Iva",1977,"Team P&G","CZE","01:57:16","00:53:10",null,null,null,"167.","Surničin","Marián","SVK",1985,"MA","Bikesport Humenné"]
["168.","ŽA","2.","Adamcová Mária",1992,"Žaškov","SVK","01:57:18","00:53:12",null,null,null,"168.","Sustr","Jan","SVK",1978,"MA","Hk Zula"]
["169.","MB","95.","Kostič Jozef",1962,"Revúca","SVK","01:57:29","00:53:23",null,null,null,"169.","Szallay","Martin","SVK",1990,"MA","Andorinhas"]
["170.","MB","140.","Pazdera Marek",1974,"SPORTILION","CZE","01:57:34","00:53:28",null,null,null,"170.","Szlachtowski","Andrzej","POL",1969,"MB","Novy Targ"]
["171.","ŽA","90.","Klobušiaková Michaela",1991,"Bobrovec","SVK","01:58:20","00:54:14",null,null,null,"171.","Šiarnik","Jakub","SVK",1994,"MA","TJ Družba Smrečany"]
["172.","MA","38.","Fulop Viktor",1985,"Nitra","SVK","01:58:58","00:54:52",null,null,null,"172.","Šmahlík","Radomír","CZE",1974,"MB","Ostrava"]
["173.","MA","45.","Gostkowski Lukasz",1987,"KB GOCH BYTOW","POL","01:59:02","00:54:56",null,null,null,"173.","Šmollová","Monika","SVK",1993,"ŽA","Liptovský Mikuláš"]
["174.","ŽA","94.","Korytiaková Katarina",1994,"Útulňa Andrejcová","SVK","02:00:00","00:55:54",null,null,null,"174.","Šmollová","Bibiana","SVK",1965,"ŽA","Liptovský Mikuláš"]
[null,null,null,null,null,null,null,null,null,null,null,null,"175.","Šnábl","Petr","CZE",1984,"MA","Běžecký klub České spořitelny"]
[null,null,null,null,null,null,null,null,null,null,null,null,"176.","Šubert","Pavel","CZE",1974,"MB","horalove"]
[null,null,null,null,null,null,null,null,null,null,null,null,"177.","Šurina","Marek","SVK",1989,"MA","Útulňa Andrejcová"]
[null,null,null,null,null,null,null,null,null,null,null,null,"178.","Švolík","Lukáš","SVK",1989,"MA","Zbojnícka chata"]
[null,null,null,null,null,null,null,null,null,null,null,null,"179.","Tajcnár","Tomáš","SVK",1987,"MA","ŠKP PKF Trnava"]
[null,null,null,null,null,null,null,null,null,null,null,null,"180.","Taragel","Valér","SVK",1988,"MA","Dukla Bratislava"]
[null,null,null,null,null,null,null,null,null,null,null,null,"181.","Telička","Marek","CZE",1972,"MB","Chvalčov"]
[null,null,null,null,null,null,null,null,null,null,null,null,"182.","Temecki","Grzegorz","POL",1981,"MA","Nowy targ"]
[null,null,null,null,null,null,null,null,null,null,null,null,"183.","Tripšanský","Michal","SVK",1993,"MA","Spišská Nová Ves"]
[null,null,null,null,null,null,null,null,null,null,null,null,"184.","Turčan","Jakub","SVK",1989,"MA","Hory v trenkách"]
[null,null,null,null,null,null,null,null,null,null,null,null,"185.","Turek","Martin","CZE",1980,"MA","www.zkisova-skolabehu.cz"]
[null,null,null,null,null,null,null,null,null,null,null,null,"186.","Uglaj","Tomas","CZE",1980,"MA","RaidLight Team"]
[null,null,null,null,null,null,null,null,null,null,null,null,"187.","Uglaj","Petr","CZE",1984,"MA","Flamingos"]
[null,null,null,null,null,null,null,null,null,null,null,null,"188.","Ulbricht","Anton","SVK",1962,"MB","Smokovecká kyselka"]
[null,null,null,null,null,null,null,null,null,null,null,null,"189.","Urban","Tomáš","SVK",1987,"MA","pre radosť"]
[null,null,null,null,null,null,null,null,null,null,null,null,"190.","Valocka","Milan","SVK",1960,"MB","Marathon BB team: Zvolen"]
[null,null,null,null,null,null,null,null,null,null,null,null,"191.","Vechter","Michal","SVK",1991,"MA","Východná"]
[null,null,null,null,null,null,null,null,null,null,null,null,"192.","Vereb","Tomáš","SVK",1974,"MB","Košice"]
[null,null,null,null,null,null,null,null,null,null,null,null,"193.","Vlčan","Ľudovít","SVK",1975,"MB","luvit Partizánske"]
[null,null,null,null,null,null,null,null,null,null,null,null,"194.","Vlček","Milan","SVK",1983,"MA","StVPS - veolia - voda"]
[null,null,null,null,null,null,null,null,null,null,null,null,"195.","Vošček","Jakub","SVK",1994,"MA","Poprad"]
[null,null,null,null,null,null,null,null,null,null,null,null,"196.","Vybíral","Lukáš","CZE",1987,"MB","Silný Tým Uničov"]
[null,null,null,null,null,null,null,null,null,null,null,null,"197.","Zajíc","Petr","CZE",1978,"MA","alaj-barjaktar"]
[null,null,null,null,null,null,null,null,null,null,null,null,"198.","Zatroch","Matej","SVK",1978,"MA","Poprad"]
[null,null,null,null,null,null,null,null,null,null,null,null,"199.","Zelená","Marie","CZE",1985,"ŽA","Uherský Brod"]
[null,null,null,null,null,null,null,null,null,null,null,null,"200.","Zelina","Milan","SVK",1985,"MA","SK PKF"]
[null,null,null,null,null,null,null,null,null,null,null,null,"201.","Repel","Adam","SVK",1994,"MA","Poprad"]
[null,null,null,null,null,null,null,null,null,null,null,null,"202.","Škřička","Jan","CZE",1978,"MA","SK Nové Město na Moravě"]

{"sheet":"MA","index":1,"n_rows":214,"n_cols":19,"rows_kept":214,"cut":false,"hidden":false,"merged":[[0,0,4,2],[0,3,2,5],[0,6,4,8],[3,3,5,5],[5,0,9,2],[5,6,9,8],[6,3,6,5],[7,3,7,5],[8,3,8,5],[9,3,9,5]]}
[null,null,null,"VÝSLEDKY"]
[]
[]
[null,null,null,"Tatranská šelma VERTICAL 2016"]
[]
[]
[null,null,null,"štart: Starý Smokovec (1025mnm): polooblačno 10°"]
[null,null,null,"cieľ: Slavkovský štít (2452mnm): jasno 19°"]
[null,null,null,"30. júla 2016 - 7km/1400m+"]
[null,null,null,"vyhotovil: Matúš Vnenčák"]
["Poradie","Kateg.","Št.č.","Priezvisko a meno                                          ","Rok nar.","Klub                                   ","Národn.","Čas","Rozdiel",null,null,"Vitaz"]
["Overall","Categ.","St.n","Surname and name","Year of b.","Club","Nation.","Time","Differ.",null,null,"01:04:06"]
["1.","MA","59.","Hlavčo Jozef",1985,"DYNAFIT","SVK","01:04:06",{"$f":"H13-$L$12","v":"00:00:00"},null,null,null,"1.","Nyéki","Jakub","SVK",1997,"MA","Veľká Lomnica"]
["2.","MA","139.","Paulen Andrej",1994,"Žilina","SVK","01:05:20",{"$f":"H14-$L$12","v":"00:01:14"},null,null,null,"2.","Adamcová","Mária","SVK",null,"ŽA","Žaškov"]
["3.","MA","207.","Hraško Miroslav",1990,"VSC Dukla","SVK","01:08:30","00:04:24",null,null,null,"3.","Adámek","Michal","SVK",1981,"MA","SE Predaj"]
["4.","MA","171.","Šiarnik Jakub",1994,"TJ Družba Smrečany","SVK","01:08:45","00:04:39",null,null,null,"4.","Alexandrov","Vladimír","SVK",1986,"MA","IshYoBoy.com"]
["5.","MA","98.","Krawczyk Pawel",1977,"Kraków","POL","01:09:13","00:05:07",null,null,null,"5.","Ambrož","Jan","CZE",1986,"MA","Booty Swing"]
["6.","MA","143.","Petrovič Matej",1995,"LK Opalisko Závažná","SVK","01:09:30","00:05:24",null,null,null,"6.","Bačík","Kristián","SVK",1991,"MA","Andorinhas"]
["7.","MA","114.","Rzeszotko Marcin",1990,"KW Zakopane/TOPR","POL","01:10:45","00:06:39",null,null,null,"7.","Balász","József","HUN",1973,"MB","Mountain Hippy"]
["8.","MA","28.","Ďurmek Ján",1978,"Valaská Belá","SVK","01:11:04","00:06:58",null,null,null,"8.","Balážik","Martin","SVK",1983,"MA","La Putika"]
["9.","MA","158.","Senčák Martin",1990,"ProSport Team Košice","SVK","01:11:41","00:07:35",null,null,null,"9.","Barnoky","Jan","CZE",1982,"MA","Ľubotice"]
["10.","MA","103.","Krzeminski Jerzy",1987,null,"POL","01:13:29","00:09:23",null,null,null,"10.","Baronova","Iva","CZE",1977,"ŽA","Team P&G"]
["11.","MA","41.","Galicz Karol",1986,"BKS Wataha Warszawa","POL","01:14:33","00:10:27",null,null,null,"11.","Belak","Lukas","SVK",1987,"MA","Roznava"]
["12.","MA","152.","Rajniak Michal",1989,"Extreme obstacle runners","SVK","01:15:50","00:11:44",null,null,null,"12.","Belica","Peter","SVK",1992,"MA","Dolné Orešany"]
["13.","MA","204.","Kalman Peter",1983,"Kráľova hoľa","SVK","01:15:51","00:11:45",null,null,null,"13.","Beňo","Milan","SVK",1980,"MA","SLOVNAFT"]
["14.","MA","35.","Forgáč Matúš",1982,"DnV","SVK","01:17:20","00:13:14",null,null,null,"14.","Bíreš","Matúš","SVK",1989,"MA","MKL Kremnica"]
["15.","MA","1.","Nyéki Jakub",1997,"Veľká Lomnica","SVK","01:18:19","00:14:13",null,null,null,"15.","Bothár","Ivan","SVK",1962,"MB","Zvolen"]
["16.","MA","123.","Mitala Jozef",1989,"Partizánske","SVK","01:18:48","00:14:42",null,null,null,"16.","BRATKO","Peter","SVK",1986,"MA","Veľká Lehota"]
["17.","MA","82.","Jurečka Matúš",1991,"Závažná Poruba","SVK","01:19:17","00:15:11",null,null,null,"17.","Brna","Silvia","SVK",1981,"ŽA","Sakura Wakelake"]
["18.","MA","109.","Lajcha Michal",1984,"TJ Ostrý Grúň","SVK","01:19:44","00:15:38",null,null,null,"18.","Brodnan","Ludovit","SVK",1959,"MB","Kovo Stránske"]
["19.","MA","206.","Kovaľ Martin",1985,"Vitalcity.sk","SVK","01:20:15","00:16:09",null,null,null,"19.","Brtva","Pavel","CZE",1994,"MA","Frenštát p. R."]
["20.","MA","16.","BRATKO Peter",1986,"Veľká Lehota","SVK","01:20:31","00:16:25",null,null,null,"20.","Buckulčík","Ivan","SVK",1994,"MA","Zákamenné"]
["21.","MA","81.","Jurčo Michal",1989,"Spišská Belá","SVK","01:21:00","00:16:54",null,null,null,"21.","Buchal","Vladimír","SVK",1963,"MB","MŠK-AK Žiar nad Hronom"]
["22.","MA","57.","Henček Emil",1992,"Active life","SVK","01:21:14","00:17:08",null,null,null,"22.","Cesnak","Jakub","SVK",1987,"MA","Bratislava"]
["23.","MA","154.","Řepa Vojtěch",1995,"Bohumín","CZE","01:21:24","00:17:18",null,null,null,"23.","Čtvrtečka","Roman","CZE",1984,"MA","Nový Jičín"]
["24.","MA","51.","Hajduk Piotr",1987,"Kraków","POL","01:21:30","00:17:24",null,null,null,"24.","Delingerová","Marie","CZE",1976,"ŽA","Šternberk"]
["25.","MA","168.","Sustr Jan",1978,"Hk Zula","SVK","01:21:32","00:17:26",null,null,null,"25.","Dindoffer","Rene","SVK",1980,"MA","Poprad"]
["26.","MA","162.","Stehlik Jan",1985,"DETVA","SVK","01:21:43","00:17:37",null,null,null,"26.","Dombrovský","Lukáš","SVK",1993,"MA","Košice"]
["27.","MA","122.","Milata Patrik",1988,"Extreme Obstacle Runners","SVK","01:22:37","00:18:31",null,null,null,"27.","Ďurčo","Dominik","SVK",1997,"MA","Banská Bystrica"]
["28.","MA","84.","Káčer Juraj",1990,"Horská služba Malá Fatra","SVK","01:22:49","00:18:43",null,null,null,"28.","Ďurmek","Ján","SVK",1978,"MA","Valaská Belá"]
["29.","MA","97.","Kouřil Jaroslav",1980,"neběžecký kroužek","CZE","01:23:04","00:18:58",null,null,null,"29.","Dvorštiak","Dalibor","SVK",1970,"MB","Ružomberok"]
["30.","MA","129.","Oceľ Marek",1984,"Dunajska Luzna","SVK","01:23:06","00:19:00",null,null,null,"30.","Dzugan","Peter","SVK",1976,"MB","Tatranska Polianka"]
["31.","MA","62.","Hrdina Libor",1979,"Děhylov","CZE","01:23:10","00:19:04",null,null,null,"31.","Falat","Zdenko","SVK",1998,"MA","Košice"]
["32.","MA","132.","Ovsak Matus",1987,"2-3 F","SVK","01:23:14","00:19:08",null,null,null,"32.","Farkaš","Andrej","SVK",1991,"MA","BERHNOHY.sk"]
["33.","MA","99.","Krejzlík Tomáš",1990,"Wolfpack Mountain Sports","CZE","01:23:32","00:19:26",null,null,null,"33.","Faťun","Pavol","SVK",1979,"MA","Poprad"]
["34.","MA","182.","Temecki Grzegorz",1981,"Nowy targ","POL","01:23:34",{"$f":"H46-$L$12","v":"00:19:28"},null,null,null,"34.","Fijalka","peter","SVK",1987,"MA","p´art of heart"]
["35.","MA","76.","Jankura Adam",1989,"TJ Tatranska Lomnica","SVK","01:23:38","00:19:32",null,null,null,"35.","Forgáč","Matúš","SVK",1982,"MA","DnV"]
["36.","MA","11.","Belak Lukas",1987,"Roznava","SVK","01:24:24","00:20:18",null,null,null,"36.","Forgáčová","Lucia","SVK",1980,"ŽA","Dubodiel"]
["37.","MA","78.","Jaworek Robert",1993,"Bohumín","CZE","01:25:17","00:21:11",null,null,null,"37.","Franko","Štefan","SVK",1980,"MA","Majláthova chata"]
["38.","MA","53.","Hanecak Marcel",1981,"Bezecky Klub Stara Lubovna","SVK","01:25:44","00:21:38",null,null,null,"38.","Fulop","Viktor","SVK",1985,"MA","Nitra"]
["39.","MA","20.","Buckulčík Ivan",1994,"Zákamenné","SVK","01:25:48","00:21:42",null,null,null,"39.","Fuňáková","Mária","SVK",1984,"ŽA","Bratislava"]
["40.","MA","131.","Orság Matej",1987,"ŠK Budimír","SVK","01:26:04","00:21:58",null,null,null,"40.","Gajdos","Vlado","SVK",1968,"MB","Prešov"]
["41.","MA","160.","Slavík Jakub",1986,"Strečno","SVK","01:26:12","00:22:06",null,null,null,"41.","Galicz","Karol","POL",1986,"MA","BKS Wataha Warszawa"]
["42.","MA","26.","Dombrovský Lukáš",1993,"Košice","SVK","01:26:36","00:22:30",null,null,null,"42.","Garaj","Pavol","SVK",1986,"MA","Štrba"]
["43.","MA","178.","Švolík Lukáš",1989,"Zbojnícka chata","SVK","01:27:28","00:23:22",null,null,null,"43.","Gontkovič","Peter","SVK",1991,"MA","Poprad"]
["44.","MA","12.","Belica Peter",1992,"Dolné Orešany","SVK","01:27:30","00:23:24",null,null,null,"44.","Gorduličová","Lucia","SVK",1980,"ŽA","Polomka"]
["45.","MA","31.","Falat Zdenko",1998,"Košice","SVK","01:27:32","00:23:26",null,null,null,"45.","Gostkowski","Lukasz","POL",1987,"MA","KB GOCH BYTOW"]
["46.","MA","177.","Šurina Marek",1989,"Útulňa Andrejcová","SVK","01:27:33","00:23:27",null,null,null,"46.","Gozdz","Monika","POL",1980,"ŽA","TKN Tatra Team"]
["47.","MA","163.","Stohl Richard",1983,"Vranov nad Toplou","SVK","01:28:01","00:23:55",null,null,null,"47.","Grácik","Eduard","SVK",1958,"MB","HAPPY FEET"]
["48.","MA","149.","Procházka Peter",1987,"Poprad","SVK","01:29:00","00:24:54",null,null,null,"48.","Greš","Oskar","SVK",1977,"MA","Košice"]
["49.","MA","144.","Pettersson Johan",1982,"Flamingos","SWE","01:29:42","00:25:36",null,null,null,"49.","Grossmann","Branislav","SVK",1988,"MA","Kremnica"]
["50.","MA","119.","Matas Zbyňek",1982,"Netunice","CZE","01:29:54","00:25:48",null,null,null,"50.","Grubarek","Dariusz","POL",1969,"MB","SZAFLARY"]
["51.","MA","56.","Heldák František",1989,"Spišská Belá","SVK","01:30:31","00:26:25",null,null,null,"51.","Hajduk","Piotr","POL",1987,"MA","Kraków"]
["52.","MA","164.","Stolarczyk Piotr",1979,"Rdzawka","POL","01:30:56","00:26:50",null,null,null,"52.","Hanák","Ivan","SVK",1993,"MA","Spišská Belá"]
["53.","MA","106.","Kuchtak Peter",1983,"Zakamenne","SVK","01:31:30","00:27:24",null,null,null,"53.","Hanecak","Marcel","SVK",1981,"MA","Bezecky Klub Stara Lubovna"]
["54.","MA","167.","Surničin Marián",1985,"Bikesport Humenné","SVK","01:31:31","00:27:25",null,null,null,"54.","Hanobik","Martin","SVK",1990,"MA","Zbojnícka chata"]
["55.","MA","194.","Vlček Milan",1983,"StVPS - veolia - voda","SVK","01:31:38","00:27:32",null,null,null,"55.","Havrila","Roman","SVK",1980,"MA","bez klubu"]
["56.","MA","27.","Ďurčo Dominik",1997,"Banská Bystrica","SVK","01:31:56","00:27:50",null,null,null,"56.","Heldák","František","SVK",1989,"MA","Spišská Belá"]
["57.","MA","85.","Kačmarčík Marek",1977,"Svit","SVK","01:32:00","00:27:54",null,null,null,"57.","Henček","Emil","SVK",1992,"MA","Active life"]
["58.","MA","43.","Gontkovič Peter",1991,"Poprad","SVK","01:32:19","00:28:13",null,null,null,"58.","Hlaváč","Peter","SVK",1974,"MB","Brasko team"]
["59.","MA","175.","Šnábl Petr",1984,"Běžecký klub České spořitelny","CZE","01:32:25","00:28:19",null,null,null,"59.","Hlavčo","Jozef","SVK",1985,"MA","DYNAFIT"]
["60.","MA","42.","Garaj Pavol",1986,"Štrba","SVK","01:32:31","00:28:25",null,null,null,"60.","Hollóši","Roman","SVK",1968,"MB","Zvolen"]
["61.","MA","54.","Hanobik Martin",1990,"Zbojnícka chata","SVK","01:32:34","00:28:28",null,null,null,"61.","Hrabovský","Michal","SVK",1961,"MB","Koškovce"]
["62.","MA","49.","Grossmann Branislav",1988,"Kremnica","SVK","01:33:10","00:29:04",null,null,null,"62.","Hrdina","Libor","CZE",1979,"MA","Děhylov"]
["63.","MA","8.","Balážik Martin",1983,"La Putika","SVK","01:33:19","00:29:13",null,null,null,"63.","Hruška","Roman","CZE",1965,"MB","sokol Loučka"]
["64.","MA","19.","Brtva Pavel",1994,"Frenštát p. R.","CZE","01:33:22","00:29:16",null,null,null,"64.","Hrušková","Jana","SVK",1990,"ŽA","Trenčín"]
["65.","MA","183.","Tripšanský Michal",1993,"Spišská Nová Ves","SVK","01:33:32","00:29:26",null,null,null,"65.","Hubač","Vlado","SVK",1971,"MB","Ski museum Tatranska Lomnica"]
["66.","MA","4.","Alexandrov Vladimír",1986,"IshYoBoy.com","SVK","01:33:52",{"$f":"H78-$L$12","v":"00:29:46"},null,null,null,"66.","Hudeček","Milan","SVK",1962,"MB","Run for Fun"]
["67.","MA","68.","Chovanec Lukáš",1984,"Bratislava","SVK","01:34:13","00:30:07",null,null,null,"67.","Hyclak","Vlado","SVK",1962,"MB","Smokovecká kyselka"]
["68.","MA","73.","Izák Ondrej",1989,"Bratislava","SVK","01:34:25","00:30:19",null,null,null,"68.","Chovanec","Lukáš","SVK",1984,"MA","Bratislava"]
["69.","MA","23.","Čtvrtečka Roman",1984,"Nový Jičín","CZE","01:35:14","00:31:08",null,null,null,"69.","Chovanec","Matúš","SVK",1987,"MA","Sveržov"]
["70.","MA","134.","Pagáčik Marek",1978,"Dolný Kubín","SVK","01:35:19","00:31:13",null,null,null,"70.","Chovanová","Monika","SVK",1987,"ŽA","HK James Dolný Kubín"]
["71.","MA","72.","Ivan Ivo",1980,"Aj MY sme BEH","SVK","01:35:57","00:31:51",null,null,null,"71.","Illéš","Martin","SVK",1998,"MA","Spartan Patriot Team Slovakia"]
["72.","MA","108.","Laffers Richard",1980,"HO TJ TATRAN SUČANY","SVK","01:36:02","00:31:56",null,null,null,"72.","Ivan","Ivo","SVK",1980,"MA","Aj MY sme BEH"]
["73.","MA","142.","Peterka Tomáš",1985,"Extreme obstacle runners","SVK","01:36:26","00:32:20",null,null,null,"73.","Izák","Ondrej","SVK",1989,"MA","Bratislava"]
["74.","MA","25.","Dindoffer Rene",1980,"Poprad","SVK","01:36:38","00:32:32",null,null,null,"74.","Jandúch","Jaroslav","SVK",1974,"MB","Bojnice manín"]
["75.","MA","130.","Orlovský Matúš",1986,"Košice","SVK","01:36:49","00:32:43",null,null,null,"75.","Janek","Tomáš","CZE",1990,"MA","Bojkovice"]
["76.","MA","5.","Ambrož Jan",1986,"Booty Swing","CZE","01:37:07","00:33:01",null,null,null,"76.","Jankura","Adam","SVK",1989,"MA","TJ Tatranska Lomnica"]
["77.","MA","156.","Sedlák Alfonz",1992,"Olcnava","SVK","01:37:25","00:33:19",null,null,null,"77.","Jas","Martin","SVK",1976,"MB","Tucniaky Zilina"]
["78.","MA","14.","Bíreš Matúš",1989,"MKL Kremnica","SVK","01:37:28","00:33:22",null,null,null,"78.","Jaworek","Robert","CZE",1993,"MA","Bohumín"]
["79.","MA","6.","Bačík Kristián",1991,"Andorinhas","SVK","01:37:48","00:33:42",null,null,null,"79.","Junga","Marian","SVK",1969,"MB","BK Lysá pod Makytou"]
["80.","MA","169.","Szallay Martin",1990,"Andorinhas","SVK","01:38:05","00:33:59",null,null,null,"80.","Junga","Tomáš","SVK",1990,"MA","Praha"]
["81.","MA","32.","Farkaš Andrej",1991,"BERHNOHY.sk","SVK","01:38:22","00:34:16",null,null,null,"81.","Jurčo","Michal","SVK",1989,"MA","Spišská Belá"]
["82.","MA","166.","Strežo Mike",1990,"Bežecký klub DK","SVK","01:38:38","00:34:32",null,null,null,"82.","Jurečka","Matúš","SVK",1991,"MA","Závažná Poruba"]
["83.","MA","34.","Fijalka peter",1987,"p´art of heart","SVK","01:39:31","00:35:25",null,null,null,"83.","Jurovich","Marian","SVK",1970,"MB","Lupienok GT unstop."]
["84.","MA","33.","Faťun Pavol",1979,"Poprad","SVK","01:39:39","00:35:33",null,null,null,"84.","Káčer","Juraj","SVK",1990,"MA","Horská služba Malá Fatra"]
["85.","MA","80.","Junga Tomáš",1990,"Praha","SVK","01:39:40","00:35:34",null,null,null,"85.","Kačmarčík","Marek","SVK",1977,"MA","Svit"]
["86.","MA","48.","Greš Oskar",1977,"Košice","SVK","01:39:55","00:35:49",null,null,null,"86.","Kačmarčík","Tomáš","SVK",1975,"MB","Šport Rysy -INOV8"]
["87.","MA","127.","Nováčik Martin",1986,"Bratislava","SVK","01:40:23","00:36:17",null,null,null,"87.","Karkoška","Ján","CZE",1978,"MA","Brno"]
["88.","MA","198.","Zatroch Matej",1978,"Poprad","SVK","01:40:26","00:36:20",null,null,null,"88.","Kekeňák","Ondrej","SVK",1976,"MB","Banská Bystrica"]
["89.","MA","195.","Vošček Jakub",1994,"Poprad","SVK","01:41:33","00:37:27",null,null,null,"89.","Kele","Péter","HUN",1966,"MB","Sálgotarján"]
["90.","MA","200.","Zelina Milan",1985,"SK PKF","SVK","01:41:43","00:37:37",null,null,null,"90.","Klobušiaková","Michaela","SVK",1991,"ŽA","Bobrovec"]
["91.","MA","151.","Radzik Maciej",1986,"Stary Sącz","POL","01:42:30","00:38:24",null,null,null,"91.","Klobušník","Peter","SVK",1985,"MA","JAMES SPIŠ"]
["92.","MA","111.","Levocký Ondrej",1981,"Batizovce","SVK","01:42:32","00:38:26",null,null,null,"92.","Konečný","Dušan","SVK",1978,"MA","SC 1896 Štrbske Pleso"]
["93.","MA","189.","Urban Tomáš",1987,"pre radosť","SVK","01:42:34","00:38:28",null,null,null,"93.","Kordík","Michael","SVK",1979,"MA","Košice"]
["94.","MA","155.","Sabisz Krzysztof",1987,"Bytow","POL","01:42:35","00:38:29",null,null,null,"94.","Korytiaková","Katarina","SVK",1994,"ŽA","Útulňa Andrejcová"]
["95.","MA","141.","Perháč Martin",1985,"Košice","SVK","01:42:36","00:38:30",null,null,null,"95.","Kostič","Jozef","SVK",1962,"MB","Revúca"]
["96.","MA","13.","Beňo Milan",1980,"SLOVNAFT","SVK","01:44:04","00:39:58",null,null,null,"96.","Kotian","Albín","SVK",1969,"MB","La Putika"]
["97.","MA","69.","Chovanec Matúš",1987,"Sveržov","SVK","01:44:31","00:40:25",null,null,null,"97.","Kouřil","Jaroslav","CZE",1980,"MA","neběžecký kroužek"]
["98.","MA","184.","Turčan Jakub",1989,"Hory v trenkách","SVK","01:44:40",{"$f":"H110-$L$12","v":"00:40:34"},null,null,null,"98.","Krawczyk","Pawel","POL",1977,"MA","Kraków"]
["99.","MA","52.","Hanák Ivan",1993,"Spišská Belá","SVK","01:45:06","00:41:00",null,null,null,"99.","Krejzlík","Tomáš","CZE",1990,"MA","Wolfpack Mountain Sports"]
["100.","MA","161.","Sopka Roman",1978,"Run the World","SVK","01:46:02","00:41:56",null,null,null,"100.","Krchníková","Zuzana","SVK",1991,"ŽA","Bratislava"]
["101.","MA","147.","Prčina Ivan",1986,"Dolný Kubín","SVK","01:46:56","00:42:50",null,null,null,"101.","Krška","Vladimír","SVK",1973,"MB","Klub priateľov športu"]
["102.","MA","157.","Sedlář Robin",1983,"Petřvald","CZE","01:47:02","00:42:56",null,null,null,"102.","Kruppa","Martin","SVK",1980,"MA","KBBS Turčianske Teplice"]
["103.","MA","113.","Lučanský Patrik",1993,"Husky Racing Team","SVK","01:47:15","00:43:09",null,null,null,"103.","Krzeminski","Jerzy","POL",1987,"MA"]
["104.","MA","124.","Moravcik Petr",1981,"Roznov pod Radh.","CZE","01:47:42","00:43:36",null,null,null,"104.","Kubin","Ireneusz","POL",1972,"MB","TG Sokół Zakopane"]
["105.","MA","93.","Kordík Michael",1979,"Košice","SVK","01:48:31","00:44:25",null,null,null,"105.","Kucháriková","Michaela","SVK",1992,"ŽA","Liptovský Mikuláš"]
["106.","MA","9.","Barnoky Jan",1982,"Ľubotice","CZE","01:48:50","00:44:44",null,null,null,"106.","Kuchtak","Petre","SVK",1983,"MA","Zakamenne"]
["107.","MA","191.","Vechter Michal",1991,"Východná","SVK","01:49:58","00:45:52",null,null,null,"107.","Kujalanskas","Vadim","POL",1971,"MB","Visegrad Maraton Rytro"]
["108.","MA","179.","Tajcnár Tomáš",1987,"ŠKP PKF Trnava","SVK","01:50:14","00:46:08",null,null,null,"108.","Laffers","Richard","SVK",1980,"MA","HO TJ TATRAN SUČANY"]
["109.","MA","22.","Cesnak Jakub",1987,"Bratislava","SVK","01:50:20","00:46:14",null,null,null,"109.","Lajcha","Michal","SVK",1984,"MA","TJ Ostrý Grúň"]
["110.","MA","55.","Havrila Roman",1980,"bez klubu","SVK","01:50:43","00:46:37",null,null,null,"110.","Lesaj","Martin","SVK",1975,"MB","Festival Horyzonty"]
["111.","MA","180.","Taragel Valér",1988,"Dukla Bratislava","SVK","01:51:48","00:47:42",null,null,null,"111.","Levocký","Ondrej","SVK",1981,"MA","Batizovce"]
["112.","MA","148.","Prieložný Eduard",1985,"Žilina","SVK","01:52:27","00:48:21",null,null,null,"112.","Longauer","Zdeno","SVK",1972,"MB","Krizna krizom krazom"]
["113.","MA","87.","Karkoška Ján",1978,"Brno","CZE","01:52:30","00:48:24",null,null,null,"113.","Lučanský","Patrik","SVK",1993,"MA","Husky Racing Team"]
["114.","MA","75.","Janek Tomáš",1990,"Bojkovice","CZE","01:53:16","00:49:10",null,null,null,"114.","Lyjak","Olga","POL",1980,"ŽA","biegamwgorach.pl"]
["115.","MA","187.","Uglaj Petr",1984,"Flamingos","CZE","01:53:52","00:49:46",null,null,null,"115.","Lysák","Radim","CZE",1960,"MB","Ostrava"]
["116.","MA","116.","Valkovič Michal",1984,"Flamingos","SVK","01:55:19","00:51:13",null,null,null,"116.","Macku","Milan","CZE",1984,"MA","Team P&G"]
["117.","MA","38.","Fulop Viktor",1985,"Nitra","SVK","01:58:58","00:54:52",null,null,null,"117.","Maliňák","Tomáš","CZE",1971,"MB","Rožnov"]
["118.","MA","45.","Gostkowski Lukasz",1987,"KB GOCH BYTOW","POL","01:59:02","00:54:56",null,null,null,"118.","Marko","Jozef","SVK",1971,"MB","Prievidza"]
[null,null,null,null,null,null,null,null,null,null,null,null,"119.","Matas","Zbyňek","CZE",1982,"MA","Netunice"]
[null,null,null,null,null,null,null,null,null,null,null,null,"120.","Máťuš","Martin","SVK",1989,"MA","ŠK Račišdorf"]
[null,null,null,null,null,null,null,null,null,null,null,null,"121.","Mikuláš","Radovan","SVK",1977,"MA","HK James DK"]
[null,null,null,null,null,null,null,null,null,null,null,null,"122.","Milata","Patrik","SVK",1988,"MA","Extreme Obstacle Runners"]
[null,null,null,null,null,null,null,null,null,null,null,null,"123.","Mitala","Jozef","SVK",1989,"MA","Partizánske"]
[null,null,null,null,null,null,null,null,null,null,null,null,"124.","Moravcik","Petr","CZE",1981,"MA","Roznov pod Radh."]
[null,null,null,null,null,null,null,null,null,null,null,null,"125.","Múdry","Peter","SVK",1975,"MB","Košice"]
[null,null,null,null,null,null,null,null,null,null,null,null,"126.","Nagy","David","SVK",1967,"MB","Bratislava"]
[null,null,null,null,null,null,null,null,null,null,null,null,"127.","Nováčik","Martin","SVK",1986,"MA","Bratislava"]
[null,null,null,null,null,null,null,null,null,null,null,null,"128.","Nyeki","Katarína","SVK",1984,"ŽA","Flamingos"]
[null,null,null,null,null,null,null,null,null,null,null,null,"129.","Oceľ","Marek","SVK",1984,"MA","Dunajska Luzna"]
[null,null,null,null,null,null,null,null,null,null,null,null,"130.","Orlovský","Matúš","SVK",1986,"MA","Košice"]
[null,null,null,null,null,null,null,null,null,null,null,null,"131.","Orság","Matej","SVK",1987,"MA","ŠK Budimír"]
[null,null,null,null,null,null,null,null,null,null,null,null,"132.","Ovsak","Matus","SVK",1987,"MA","2-3 F"]
[null,null,null,null,null,null,null,null,null,null,null,null,"133.","Pagáč","Michal","SVK",1987,"MA","Poprad"]
[null,null,null,null,null,null,null,null,null,null,null,null,"134.","Pagáčik","Marek","SVK",1978,"MA","Dolný Kubín"]
[null,null,null,null,null,null,null,null,null,null,null,null,"135.","Pachura","Kinga","POL",1976,"ŽA","Mszana Dolna"]
[null,null,null,null,null,null,null,null,null,null,null,null,"136.","Palka","Joanna","POL",1988,"ŽA","BOOT CAMP POLSKA"]
[null,null,null,null,null,null,null,null,null,null,null,null,"137.","Pancurák","Jaroslav","SVK",1981,"MA","Vranovské Vydry"]
[null,null,null,null,null,null,null,null,null,null,null,null,"138.","Parreira","Raquel","POR",1993,"ŽA","Andorinhas"]
[null,null,null,null,null,null,null,null,null,null,null,null,"139.","Paulen","Andrej","SVK",1994,"MA","Žilina"]
[null,null,null,null,null,null,null,null,null,null,null,null,"140.","Pazdera","Marek","CZE",1974,"MB","SPORTILION"]
[null,null,null,null,null,null,null,null,null,null,null,null,"141.","Perháč","Martin","SVK",1985,"MA","Košice"]
[null,null,null,null,null,null,null,null,null,null,null,null,"142.","Peterka","Tomáš","SVK",1985,"MA","Extreme obstacle runners"]
[null,null,null,null,null,null,null,null,null,null,null,null,"143.","Petrovič","Matej","SVK",1995,"MA","LK Opalisko Závažná"]
[null,null,null,null,null,null,null,null,null,null,null,null,"144.","Pettersson","Johan","SWE",1982,"MA","Flamingos"]
[null,null,null,null,null,null,null,null,null,null,null,null,"145.","Piorecki","Michal","POL",1976,"MB","Krakow"]
[null,null,null,null,null,null,null,null,null,null,null,null,"146.","Pisarek","Renata","POL",1970,"ŽA","Krakow"]
[null,null,null,null,null,null,null,null,null,null,null,null,"147.","Prčina","Ivan","SVK",1986,"MA","Dolný Kubín"]
[null,null,null,null,null,null,null,null,null,null,null,null,"148.","Prieložný","Eduard","SVK",1985,"MA","Žilina"]
[null,null,null,null,null,null,null,null,null,null,null,null,"149.","Procházka","Peter","SVK",1987,"MA","Poprad"]
[null,null,null,null,null,null,null,null,null,null,null,null,"150.","Pšenica","Július","CZE",1967,"MB","Zlin"]
[null,null,null,null,null,null,null,null,null,null,null,null,"151.","Radzik","Maciej","POL",1986,"MA","Stary Sącz"]
[null,null,null,null,null,null,null,null,null,null,null,null,"152.","Rajniak","Michal","SVK",1989,"MB","Extreme obstacle runners"]
[null,null,null,null,null,null,null,null,null,null,null,null,"153.","Rysa","Michal","SVK",1976,"MB","TJ Tatran Gerlachov"]
[null,null,null,null,null,null,null,null,null,null,null,null,"154.","Řepa","Vojtěch","CZE",1995,"MA","Bohumín"]
[null,null,null,null,null,null,null,null,null,null,null,null,"155.","Sabisz","Krzysztof","POL",1987,"MA","Bytow"]
[null,null,null,null,null,null,null,null,null,null,null,null,"156.","Sedlák","Alfonz","SVK",1992,"MA","Olcnava"]
[null,null,null,null,null,null,null,null,null,null,null,null,"157.","Sedlář","Robin","CZE",1983,"MA","Petřvald"]
[null,null,null,null,null,null,null,null,null,null,null,null,"158.","Senčák","Martin","SVK",1990,"MA","ProSport Team Košice"]
[null,null,null,null,null,null,null,null,null,null,null,null,"159.","Schmidt","Miroslav","SVK",1972,"MB","MKL Kremnica"]
[null,null,null,null,null,null,null,null,null,null,null,null,"160.","Slavík","Jakub","SVK",1986,"MA","Strečno"]
[null,null,null,null,null,null,null,null,null,null,null,null,"161.","Sopka","Roman","SVK",1978,"MA","Run the World"]
[null,null,null,null,null,null,null,null,null,null,null,null,"162.","Stehlik","Jan","SVK",1985,"MA","DETVA"]
[null,null,null,null,null,null,null,null,null,null,null,null,"163.","Stohl","Richard","SVK",1983,"MA","Vranov nad Toplou"]
[null,null,null,null,null,null,null,null,null,null,null,null,"164.","Stolarczyk","Piotr","POL",1979,"MA","Rdzawka"]
[null,null,null,null,null,null,null,null,null,null,null,null,"165.","Stretavska","Jana","CZE",1991,"ŽA","Flamingos"]
[null,null,null,null,null,null,null,null,null,null,null,null,"166.","Strežo","Mike","SVK",1990,"MA","Bežecký klub DK"]
[null,null,null,null,null,null,null,null,null,null,null,null,"167.","Surničin","Marián","SVK",1985,"MA","Bikesport Humenné"]
[null,null,null,null,null,null,null,null,null,null,null,null,"168.","Sustr","Jan","SVK",1978,"MA","Hk Zula"]
[null,null,null,null,null,null,null,null,null,null,null,null,"169.","Szallay","Martin","SVK",1990,"MA","Andorinhas"]
[null,null,null,null,null,null,null,null,null,null,null,null,"170.","Szlachtowski","Andrzej","POL",1969,"MB","Novy Targ"]
[null,null,null,null,null,null,null,null,null,null,null,null,"171.","Šiarnik","Jakub","SVK",1994,"MA","TJ Družba Smrečany"]
[null,null,null,null,null,null,null,null,null,null,null,null,"172.","Šmahlík","Radomír","CZE",1974,"MB","Ostrava"]
[null,null,null,null,null,null,null,null,null,null,null,null,"173.","Šmollová","Monika","SVK",1993,"ŽA","Liptovský Mikuláš"]
[null,null,null,null,null,null,null,null,null,null,null,null,"174.","Šmollová","Bibiana","SVK",1965,"ŽA","Liptovský Mikuláš"]
[null,null,null,null,null,null,null,null,null,null,null,null,"175.","Šnábl","Petr","CZE",1984,"MA","Běžecký klub České spořitelny"]
[null,null,null,null,null,null,null,null,null,null,null,null,"176.","Šubert","Pavel","CZE",1974,"MB","horalove"]
[null,null,null,null,null,null,null,null,null,null,null,null,"177.","Šurina","Marek","SVK",1989,"MA","Útulňa Andrejcová"]
[null,null,null,null,null,null,null,null,null,null,null,null,"178.","Švolík","Lukáš","SVK",1989,"MA","Zbojnícka chata"]
[null,null,null,null,null,null,null,null,null,null,null,null,"179.","Tajcnár","Tomáš","SVK",1987,"MA","ŠKP PKF Trnava"]
[null,null,null,null,null,null,null,null,null,null,null,null,"180.","Taragel","Valér","SVK",1988,"MA","Dukla Bratislava"]
[null,null,null,null,null,null,null,null,null,null,null,null,"181.","Telička","Marek","CZE",1972,"MB","Chvalčov"]
[null,null,null,null,null,null,null,null,null,null,null,null,"182.","Temecki","Grzegorz","POL",1981,"MA","Nowy targ"]
[null,null,null,null,null,null,null,null,null,null,null,null,"183.","Tripšanský","Michal","SVK",1993,"MA","Spišská Nová Ves"]
[null,null,null,null,null,null,null,null,null,null,null,null,"184.","Turčan","Jakub","SVK",1989,"MA","Hory v trenkách"]
[null,null,null,null,null,null,null,null,null,null,null,null,"185.","Turek","Martin","CZE",1980,"MA","www.zkisova-skolabehu.cz"]
[null,null,null,null,null,null,null,null,null,null,null,null,"186.","Uglaj","Tomas","CZE",1980,"MA","RaidLight Team"]
[null,null,null,null,null,null,null,null,null,null,null,null,"187.","Uglaj","Petr","CZE",1984,"MA","Flamingos"]
[null,null,null,null,null,null,null,null,null,null,null,null,"188.","Ulbricht","Anton","SVK",1962,"MB","Smokovecká kyselka"]
[null,null,null,null,null,null,null,null,null,null,null,null,"189.","Urban","Tomáš","SVK",1987,"MA","pre radosť"]
[null,null,null,null,null,null,null,null,null,null,null,null,"190.","Valocka","Milan","SVK",1960,"MB","Marathon BB team: Zvolen"]
[null,null,null,null,null,null,null,null,null,null,null,null,"191.","Vechter","Michal","SVK",1991,"MA","Východná"]
[null,null,null,null,null,null,null,null,null,null,null,null,"192.","Vereb","Tomáš","SVK",1974,"MB","Košice"]
[null,null,null,null,null,null,null,null,null,null,null,null,"193.","Vlčan","Ľudovít","SVK",1975,"MB","luvit Partizánske"]
[null,null,null,null,null,null,null,null,null,null,null,null,"194.","Vlček","Milan","SVK",1983,"MA","StVPS - veolia - voda"]
[null,null,null,null,null,null,null,null,null,null,null,null,"195.","Vošček","Jakub","SVK",1994,"MA","Poprad"]
[null,null,null,null,null,null,null,null,null,null,null,null,"196.","Vybíral","Lukáš","CZE",1987,"MB","Silný Tým Uničov"]
[null,null,null,null,null,null,null,null,null,null,null,null,"197.","Zajíc","Petr","CZE",1978,"MA","alaj-barjaktar"]
[null,null,null,null,null,null,null,null,null,null,null,null,"198.","Zatroch","Matej","SVK",1978,"MA","Poprad"]
[null,null,null,null,null,null,null,null,null,null,null,null,"199.","Zelená","Marie","CZE",1985,"ŽA","Uherský Brod"]
[null,null,null,null,null,null,null,null,null,null,null,null,"200.","Zelina","Milan","SVK",1985,"MA","SK PKF"]
[null,null,null,null,null,null,null,null,null,null,null,null,"201.","Repel","Adam","SVK",1994,"MA","Poprad"]
[null,null,null,null,null,null,null,null,null,null,null,null,"202.","Škřička","Jan","CZE",1978,"MA","SK Nové Město na Moravě"]

{"sheet":"MB","index":2,"n_rows":96,"n_cols":19,"rows_kept":96,"cut":false,"hidden":false,"merged":[[0,0,4,2],[0,3,2,5],[0,6,4,8],[3,3,5,5],[5,0,9,2],[5,6,9,8],[6,3,6,5],[7,3,7,5],[8,3,8,5],[9,3,9,5]]}
[null,null,null,"VÝSLEDKY"]
[]
[]
[null,null,null,"Tatranská šelma VERTICAL 2016"]
[]
[]
[null,null,null,"štart: Starý Smokovec (1025mnm): polooblačno 10°"]
[null,null,null,"cieľ: Slavkovský štít (2452mnm): jasno 19°"]
[null,null,null,"30. júla 2016 - 7km/1400m+"]
[null,null,null,"vyhotovil: Matúš Vnenčák"]
["Poradie","Kateg.","Št.č.","Priezvisko a meno                                          ","Rok nar.","Klub                                   ","Národn.","Čas","Rozdiel",null,null,"Vitaz"]
["Overall","Categ.","St.n","Surname and name","Year of b.","Club","Nation.","Time","Differ.",null,null,"01:11:48"]
["1.","MB","112.","Longauer Zdeno",1972,"Krizna krizom krazom","SVK","01:11:48",{"$f":"H13-$L$12","v":"00:00:00"},null,null,null,"119.","Matas","Zbyňek","CZE",1982,"MA","Netunice"]
["2.","MB","107.","Kujalanskas Vadim",1971,"Visegrad Maraton Rytro","POL","01:23:28","00:11:40",null,null,null,"120.","Máťuš","Martin","SVK",1989,"MA","ŠK Račišdorf"]
["3.","MB","86.","Kačmarčík Tomáš",1975,"Šport Rysy -INOV8","SVK","01:23:45","00:11:57",null,null,null,"121.","Mikuláš","Radovan","SVK",1977,"MA","HK James DK"]
["4.","MB","29.","Dvorštiak Dalibor",1970,"Ružomberok","SVK","01:26:00","00:14:12",null,null,null,"122.","Milata","Patrik","SVK",1988,"MA","Extreme Obstacle Runners"]
["5.","MB","153.","Rysa Michal",1976,"TJ Tatran Gerlachov","SVK","01:27:31","00:15:43",null,null,null,"123.","Mitala","Jozef","SVK",1989,"MA","Partizánske"]
["6.","MB","79.","Junga Marian",1969,"BK Lysá pod Makytou","SVK","01:27:35","00:15:47",null,null,null,"124.","Moravcik","Petr","CZE",1981,"MA","Roznov pod Radh."]
["7.","MB","60.","Hollóši Roman",1968,"Zvolen","SVK","01:27:36","00:15:48",null,null,null,"125.","Múdry","Peter","SVK",1975,"MB","Košice"]
["8.","MB","21.","Buchal Vladimír",1963,"MŠK-AK Žiar nad Hronom","SVK","01:27:37","00:15:49",null,null,null,"126.","Nagy","David","SVK",1967,"MB","Bratislava"]
["9.","MB","190.","Valocka Milan",1960,"Marathon BB team: Zvolen","SVK","01:28:47","00:16:59",null,null,null,"127.","Nováčik","Martin","SVK",1986,"MA","Bratislava"]
["10.","MB","77.","Jaš Martin",1976,"Tucniaky Zilina","SVK","01:29:53","00:18:05",null,null,null,"128.","Nyeki","Katarína","SVK",1984,"ŽA","Flamingos"]
["11.","MB","196.","Vybíral Lukáš",1972,"Silný Tým Uničov","CZE","01:30:15","00:18:27",null,null,null,"129.","Oceľ","Marek","SVK",1984,"MA","Dunajska Luzna"]
["12.","MB","50.","Grubarek Dariusz",1969,"SZAFLARY","POL","01:30:51","00:19:03",null,null,null,"130.","Orlovský","Matúš","SVK",1986,"MA","Košice"]
["13.","MB","104.","Kubin Ireneusz",1972,"TG Sokół Zakopane","POL","01:31:55","00:20:07",null,null,null,"131.","Orság","Matej","SVK",1987,"MA","ŠK Budimír"]
["14.","MB","145.","Piorecki Michal",1976,"Krakow","POL","01:31:58","00:20:10",null,null,null,"132.","Ovsak","Matus","SVK",1987,"MA","2-3 F"]
["15.","MB","47.","Grácik Eduard",1958,"HAPPY FEET","SVK","01:32:51","00:21:03",null,null,null,"133.","Pagáč","Michal","SVK",1987,"MA","Poprad"]
["16.","MB","126.","Nagy David",1967,"Bratislava","SVK","01:32:57","00:21:09",null,null,null,"134.","Pagáčik","Marek","SVK",1978,"MA","Dolný Kubín"]
["17.","MB","66.","Hudeček Milan",1962,"Run for Fun","SVK","01:33:08","00:21:20",null,null,null,"135.","Pachura","Kinga","POL",1976,"ŽA","Mszana Dolna"]
["18.","MB","176.","Šubert Pavel",1974,"horalove","CZE","01:33:31","00:21:43",null,null,null,"136.","Palka","Joanna","POL",1988,"ŽA","BOOT CAMP POLSKA"]
["19.","MB","58.","Hlaváč Peter",1974,"Brasko team","SVK","01:34:48","00:23:00",null,null,null,"137.","Pancurák","Jaroslav","SVK",1981,"MA","Vranovské Vydry"]
["20.","MB","110.","Lesaj Martin",1975,"Festival Horyzonty","SVK","01:34:54","00:23:06",null,null,null,"138.","Parreira","Raquel","POR",1993,"ŽA","Andorinhas"]
["21.","MB","172.","Šmahlík Radomír",1974,"Ostrava","CZE","01:36:31","00:24:43",null,null,null,"139.","Paulen","Andrej","SVK",1994,"MA","Žilina"]
["22.","MB","40.","Gajdos Vlado",1968,"Prešov","SVK","01:37:39","00:25:51",null,null,null,"140.","Pazdera","Marek","CZE",1974,"MB","SPORTILION"]
["23.","MB","159.","Schmidt Miroslav",1972,"MKL Kremnica","SVK","01:37:54","00:26:06",null,null,null,"141.","Perháč","Martin","SVK",1985,"MA","Košice"]
["24.","MB","170.","Szlachtowski Andrzej",1969,"Novy Targ","POL","01:39:12","00:27:24",null,null,null,"142.","Peterka","Tomáš","SVK",1985,"MA","Extreme obstacle runners"]
["25.","MB","7.","Balász József",1973,"Mountain Hippy","HUN","01:42:33","00:30:45",null,null,null,"143.","Petrovič","Matej","SVK",1995,"MA","LK Opalisko Závažná"]
["26.","MB","88.","Kekeňák Ondrej",1976,"Banská Bystrica","SVK","01:42:37","00:30:49",null,null,null,"144.","Pettersson","Johan","SWE",1982,"MA","Flamingos"]
["27.","MB","118.","Marko Jozef",1971,"Prievidza","SVK","01:42:49","00:31:01",null,null,null,"145.","Piorecki","Michal","POL",1976,"MB","Krakow"]
["28.","MB","117.","Maliňák Tomáš",1971,"Rožnov","CZE","01:42:50","00:31:02",null,null,null,"146.","Pisarek","Renata","POL",1970,"ŽA","Krakow"]
["29.","MB","193.","Vlčan Ľudovít",1975,"luvit Partizánske","SVK","01:43:05","00:31:17",null,null,null,"147.","Prčina","Ivan","SVK",1986,"MA","Dolný Kubín"]
["30.","MB","181.","Telička Marek",1972,"Chvalčov","CZE","01:44:40","00:32:52",null,null,null,"148.","Prieložný","Eduard","SVK",1985,"MA","Žilina"]
["31.","MB","89.","Kele Péter",1966,"Sálgotarján","HUN","01:48:32","00:36:44",null,null,null,"149.","Procházka","Peter","SVK",1987,"MA","Poprad"]
["32.","MB","125.","Múdry Peter",1975,"Košice","SVK","01:50:07","00:38:19",null,null,null,"150.","Pšenica","Július","CZE",1967,"MB","Zlin"]
["33.","MB","96.","Kotian Albín",1969,"La Putika","SVK","01:51:37","00:39:49",null,null,null,"151.","Radzik","Maciej","POL",1986,"MA","Stary Sącz"]
["34.","MB","101.","Krška Vladimír",1973,"Klub priateľov športu","SVK","01:51:42","00:39:54",null,null,null,"152.","Rajniak","Michal","SVK",1989,"MB","Extreme obstacle runners"]
["35.","MB","61.","Hrabovský Michal",1961,"Koškovce","SVK","01:53:04","00:41:16",null,null,null,"153.","Rysa","Michal","SVK",1976,"MB","TJ Tatran Gerlachov"]
["36.","MB","150.","Pšenica Július",1967,"Zlin","CZE","01:53:12","00:41:24",null,null,null,"154.","Řepa","Vojtěch","CZE",1995,"MA","Bohumín"]
["37.","MB","95.","Kostič Jozef",1962,"Revúca","SVK","01:57:29","00:45:41",null,null,null,"155.","Sabisz","Krzysztof","POL",1987,"MA","Bytow"]
["38.","MB","140.","Pazdera Marek",1974,"SPORTILION","CZE","01:57:34","00:45:46",null,null,null,"156.","Sedlák","Alfonz","SVK",1992,"MA","Olcnava"]
[null,null,null,null,null,null,null,null,null,null,null,null,"157.","Sedlář","Robin","CZE",1983,"MA","Petřvald"]
[null,null,null,null,null,null,null,null,null,null,null,null,"158.","Senčák","Martin","SVK",1990,"MA","ProSport Team Košice"]
[null,null,null,null,null,null,null,null,null,null,null,null,"159.","Schmidt","Miroslav","SVK",1972,"MB","MKL Kremnica"]
[null,null,null,null,null,null,null,null,null,null,null,null,"160.","Slavík","Jakub","SVK",1986,"MA","Strečno"]
[null,null,null,null,null,null,null,null,null,null,null,null,"161.","Sopka","Roman","SVK",1978,"MA","Run the World"]
[null,null,null,null,null,null,null,null,null,null,null,null,"162.","Stehlik","Jan","SVK",1985,"MA","DETVA"]
[null,null,null,null,null,null,null,null,null,null,null,null,"163.","Stohl","Richard","SVK",1983,"MA","Vranov nad Toplou"]
[null,null,null,null,null,null,null,null,null,null,null,null,"164.","Stolarczyk","Piotr","POL",1979,"MA","Rdzawka"]
[null,null,null,null,null,null,null,null,null,null,null,null,"165.","Stretavska","Jana","CZE",1991,"ŽA","Flamingos"]
[null,null,null,null,null,null,null,null,null,null,null,null,"166.","Strežo","Mike","SVK",1990,"MA","Bežecký klub DK"]
[null,null,null,null,null,null,null,null,null,null,null,null,"167.","Surničin","Marián","SVK",1985,"MA","Bikesport Humenné"]
[null,null,null,null,null,null,null,null,null,null,null,null,"168.","Sustr","Jan","SVK",1978,"MA","Hk Zula"]
[null,null,null,null,null,null,null,null,null,null,null,null,"169.","Szallay","Martin","SVK",1990,"MA","Andorinhas"]
[null,null,null,null,null,null,null,null,null,null,null,null,"170.","Szlachtowski","Andrzej","POL",1969,"MB","Novy Targ"]
[null,null,null,null,null,null,null,null,null,null,null,null,"171.","Šiarnik","Jakub","SVK",1994,"MA","TJ Družba Smrečany"]
[null,null,null,null,null,null,null,null,null,null,null,null,"172.","Šmahlík","Radomír","CZE",1974,"MB","Ostrava"]
[null,null,null,null,null,null,null,null,null,null,null,null,"173.","Šmollová","Monika","SVK",1993,"ŽA","Liptovský Mikuláš"]
[null,null,null,null,null,null,null,null,null,null,null,null,"174.","Šmollová","Bibiana","SVK",1965,"ŽA","Liptovský Mikuláš"]
[null,null,null,null,null,null,null,null,null,null,null,null,"175.","Šnábl","Petr","CZE",1984,"MA","Běžecký klub České spořitelny"]
[null,null,null,null,null,null,null,null,null,null,null,null,"176.","Šubert","Pavel","CZE",1974,"MB","horalove"]
[null,null,null,null,null,null,null,null,null,null,null,null,"177.","Šurina","Marek","SVK",1989,"MA","Útulňa Andrejcová"]
[null,null,null,null,null,null,null,null,null,null,null,null,"178.","Švolík","Lukáš","SVK",1989,"MA","Zbojnícka chata"]
[null,null,null,null,null,null,null,null,null,null,null,null,"179.","Tajcnár","Tomáš","SVK",1987,"MA","ŠKP PKF Trnava"]
[null,null,null,null,null,null,null,null,null,null,null,null,"180.","Taragel","Valér","SVK",1988,"MA","Dukla Bratislava"]
[null,null,null,null,null,null,null,null,null,null,null,null,"181.","Telička","Marek","CZE",1972,"MB","Chvalčov"]
[null,null,null,null,null,null,null,null,null,null,null,null,"182.","Temecki","Grzegorz","POL",1981,"MA","Nowy targ"]
[null,null,null,null,null,null,null,null,null,null,null,null,"183.","Tripšanský","Michal","SVK",1993,"MA","Spišská Nová Ves"]
[null,null,null,null,null,null,null,null,null,null,null,null,"184.","Turčan","Jakub","SVK",1989,"MA","Hory v trenkách"]
[null,null,null,null,null,null,null,null,null,null,null,null,"185.","Turek","Martin","CZE",1980,"MA","www.zkisova-skolabehu.cz"]
[null,null,null,null,null,null,null,null,null,null,null,null,"186.","Uglaj","Tomas","CZE",1980,"MA","RaidLight Team"]
[null,null,null,null,null,null,null,null,null,null,null,null,"187.","Uglaj","Petr","CZE",1984,"MA","Flamingos"]
[null,null,null,null,null,null,null,null,null,null,null,null,"188.","Ulbricht","Anton","SVK",1962,"MB","Smokovecká kyselka"]
[null,null,null,null,null,null,null,null,null,null,null,null,"189.","Urban","Tomáš","SVK",1987,"MA","pre radosť"]
[null,null,null,null,null,null,null,null,null,null,null,null,"190.","Valocka","Milan","SVK",1960,"MB","Marathon BB team: Zvolen"]
[null,null,null,null,null,null,null,null,null,null,null,null,"191.","Vechter","Michal","SVK",1991,"MA","Východná"]
[null,null,null,null,null,null,null,null,null,null,null,null,"192.","Vereb","Tomáš","SVK",1974,"MB","Košice"]
[null,null,null,null,null,null,null,null,null,null,null,null,"193.","Vlčan","Ľudovít","SVK",1975,"MB","luvit Partizánske"]
[null,null,null,null,null,null,null,null,null,null,null,null,"194.","Vlček","Milan","SVK",1983,"MA","StVPS - veolia - voda"]
[null,null,null,null,null,null,null,null,null,null,null,null,"195.","Vošček","Jakub","SVK",1994,"MA","Poprad"]
[null,null,null,null,null,null,null,null,null,null,null,null,"196.","Vybíral","Lukáš","CZE",1987,"MB","Silný Tým Uničov"]
[null,null,null,null,null,null,null,null,null,null,null,null,"197.","Zajíc","Petr","CZE",1978,"MA","alaj-barjaktar"]
[null,null,null,null,null,null,null,null,null,null,null,null,"198.","Zatroch","Matej","SVK",1978,"MA","Poprad"]
[null,null,null,null,null,null,null,null,null,null,null,null,"199.","Zelená","Marie","CZE",1985,"ŽA","Uherský Brod"]
[null,null,null,null,null,null,null,null,null,null,null,null,"200.","Zelina","Milan","SVK",1985,"MA","SK PKF"]
[null,null,null,null,null,null,null,null,null,null,null,null,"201.","Repel","Adam","SVK",1994,"MA","Poprad"]
[null,null,null,null,null,null,null,null,null,null,null,null,"202.","Škřička","Jan","CZE",1978,"MA","SK Nové Město na Moravě"]

{"sheet":"ŽA","index":3,"n_rows":214,"n_cols":19,"rows_kept":214,"cut":false,"hidden":false,"merged":[[0,0,4,2],[0,3,2,5],[0,6,4,8],[3,3,5,5],[5,0,9,2],[5,6,9,8],[6,3,6,5],[7,3,7,5],[8,3,8,5],[9,3,9,5]]}
[null,null,null,"VÝSLEDKY"]
[]
[]
[null,null,null,"Tatranská šelma VERTICAL 2016"]
[]
[]
[null,null,null,"štart: Starý Smokovec (1025mnm): polooblačno 19°"]
[null,null,null,"cieľ: Slavkovský štít (2452mnm): jasno 19°"]
[null,null,null,"30. júla 2016 - 7km/1400m+"]
[null,null,null,"vyhotovil: Matúš Vnenčák"]
["Poradie","Kateg.","Št.č.","Priezvisko a meno                                          ","Rok nar.","Klub                                   ","Národn.","Čas","Rozdiel",null,null,"Vitaz"]
["Overall","Categ.","St.n","Surname and name","Year of b.","Club","Nation.","Time","Differ.",null,null,"01:24:13"]
["1.","ŽA","24.","Delingerová Marie",1976,"Šternberk","CZE","01:24:13",{"$f":"H13-$L$12","v":"00:00:00"},null,null,null,"1.","Nyéki","Jakub","SVK",1997,"MA","Veľká Lomnica"]
["2.","ŽA","46.","Gozdz Monika",1980,"TKN Tatra Team","POL","01:28:00","00:03:47",null,null,null,"2.","Adamcová","Mária","SVK",null,"ŽA","Žaškov"]
["3.","ŽA","105.","Kucháriková Michaela",1992,"Liptovský Mikuláš","SVK","01:33:30","00:09:17",null,null,null,"3.","Adámek","Michal","SVK",1981,"MA","SE Predaj"]
["4.","ŽA","135.","Pachura Kinga",1976,"Mszana Dolna","POL","01:38:41","00:14:28",null,null,null,"4.","Alexandrov","Vladimír","SVK",1986,"MA","IshYoBoy.com"]
["5.","ŽA","199.","Zelená Marie",1985,"Uherský Brod","CZE","01:40:43","00:16:30",null,null,null,"5.","Ambrož","Jan","CZE",1986,"MA","Booty Swing"]
["6.","ŽA","136.","Palka Joanna",1988,"BOOT CAMP POLSKA","POL","01:40:56","00:16:43",null,null,null,"6.","Bačík","Kristián","SVK",1991,"MA","Andorinhas"]
["7.","ŽA","36.","Forgáčová Lucia",1980,"Dubodiel","SVK","01:42:31","00:18:18",null,null,null,"7.","Balász","József","HUN",1973,"MB","Mountain Hippy"]
["8.","ŽA","70.","Chovanová Monika",1987,"HK James Dolný Kubín","SVK","01:45:26","00:21:13",null,null,null,"8.","Balážik","Martin","SVK",1983,"MA","La Putika"]
["9.","ŽA","173.","Šmollová Monika",1993,"Liptovský Mikuláš","SVK","01:46:15","00:22:02",null,null,null,"9.","Barnoky","Jan","CZE",1982,"MA","Ľubotice"]
["10.","ŽA","174.","Šmollová Bibiana",1965,"Liptovský Mikuláš","SVK","01:47:23","00:23:10",null,null,null,"10.","Baronova","Iva","CZE",1977,"ŽA","Team P&G"]
["11.","ŽA","64.","Hrušková Jana",1990,"Trenčín","SVK","01:48:38","00:24:25",null,null,null,"11.","Belak","Lukas","SVK",1987,"MA","Roznava"]
["12.","ŽA","146.","Pisarek Renata",1970,"Krakow","POL","01:49:57","00:25:44",null,null,null,"12.","Belica","Peter","SVK",1992,"MA","Dolné Orešany"]
["13.","ŽA","44.","Gorduličová Lucia",1980,"Polomka","SVK","01:52:11","00:27:58",null,null,null,"13.","Beňo","Milan","SVK",1980,"MA","SLOVNAFT"]
["14.","ŽA","39.","Fuňáková Mária",1984,"Bratislava","SVK","01:54:42","00:30:29",null,null,null,"14.","Bíreš","Matúš","SVK",1989,"MA","MKL Kremnica"]
["15.","ŽA","10.","Baronova Iva",1977,"Team P&G","CZE","01:57:16","00:33:03",null,null,null,"15.","Bothár","Ivan","SVK",1962,"MB","Zvolen"]
["16.","ŽA","2.","Adamcová Mária",1992,"Žaškov","SVK","01:57:18","00:33:05",null,null,null,"16.","BRATKO","Peter","SVK",1986,"MA","Veľká Lehota"]
["17.","ŽA","90.","Klobušiaková Michaela",1991,"Bobrovec","SVK","01:58:20","00:34:07",null,null,null,"17.","Brna","Silvia","SVK",1981,"ŽA","Sakura Wakelake"]
["18.","ŽA","94.","Korytiaková Katarina",1994,"Útulňa Andrejcová","SVK","02:00:00","00:35:47",null,null,null,"18.","Brodnan","Ludovit","SVK",1959,"MB","Kovo Stránske"]
[null,null,null,null,null,null,null,null,null,null,null,null,"19.","Brtva","Pavel","CZE",1994,"MA","Frenštát p. R."]
[null,null,null,null,null,null,null,null,null,null,null,null,"20.","Buckulčík","Ivan","SVK",1994,"MA","Zákamenné"]
[null,null,null,null,null,null,null,null,null,null,null,null,"21.","Buchal","Vladimír","SVK",1963,"MB","MŠK-AK Žiar nad Hronom"]
[null,null,null,null,null,null,null,null,null,null,null,null,"22.","Cesnak","Jakub","SVK",1987,"MA","Bratislava"]
[null,null,null,null,null,null,null,null,null,null,null,null,"23.","Čtvrtečka","Roman","CZE",1984,"MA","Nový Jičín"]
[null,null,null,null,null,null,null,null,null,null,null,null,"24.","Delingerová","Marie","CZE",1976,"ŽA","Šternberk"]
[null,null,null,null,null,null,null,null,null,null,null,null,"25.","Dindoffer","Rene","SVK",1980,"MA","Poprad"]
[null,null,null,null,null,null,null,null,null,null,null,null,"26.","Dombrovský","Lukáš","SVK",1993,"MA","Košice"]
[null,null,null,null,null,null,null,null,null,null,null,null,"27.","Ďurčo","Dominik","SVK",1997,"MA","Banská Bystrica"]
[null,null,null,null,null,null,null,null,null,null,null,null,"28.","Ďurmek","Ján","SVK",1978,"MA","Valaská Belá"]
[null,null,null,null,null,null,null,null,null,null,null,null,"29.","Dvorštiak","Dalibor","SVK",1970,"MB","Ružomberok"]
[null,null,null,null,null,null,null,null,null,null,null,null,"30.","Dzugan","Peter","SVK",1976,"MB","Tatranska Polianka"]
[null,null,null,null,null,null,null,null,null,null,null,null,"31.","Falat","Zdenko","SVK",1998,"MA","Košice"]
[null,null,null,null,null,null,null,null,null,null,null,null,"32.","Farkaš","Andrej","SVK",1991,"MA","BERHNOHY.sk"]
[null,null,null,null,null,null,null,null,null,null,null,null,"33.","Faťun","Pavol","SVK",1979,"MA","Poprad"]
[null,null,null,null,null,null,null,null,null,null,null,null,"34.","Fijalka","peter","SVK",1987,"MA","p´art of heart"]
[null,null,null,null,null,null,null,null,null,null,null,null,"35.","Forgáč","Matúš","SVK",1982,"MA","DnV"]
[null,null,null,null,null,null,null,null,null,null,null,null,"36.","Forgáčová","Lucia","SVK",1980,"ŽA","Dubodiel"]
[null,null,null,null,null,null,null,null,null,null,null,null,"37.","Franko","Štefan","SVK",1980,"MA","Majláthova chata"]
[null,null,null,null,null,null,null,null,null,null,null,null,"38.","Fulop","Viktor","SVK",1985,"MA","Nitra"]
[null,null,null,null,null,null,null,null,null,null,null,null,"39.","Fuňáková","Mária","SVK",1984,"ŽA","Bratislava"]
[null,null,null,null,null,null,null,null,null,null,null,null,"40.","Gajdos","Vlado","SVK",1968,"MB","Prešov"]
[null,null,null,null,null,null,null,null,null,null,null,null,"41.","Galicz","Karol","POL",1986,"MA","BKS Wataha Warszawa"]
[null,null,null,null,null,null,null,null,null,null,null,null,"42.","Garaj","Pavol","SVK",1986,"MA","Štrba"]
[null,null,null,null,null,null,null,null,null,null,null,null,"43.","Gontkovič","Peter","SVK",1991,"MA","Poprad"]
[null,null,null,null,null,null,null,null,null,null,null,null,"44.","Gorduličová","Lucia","SVK",1980,"ŽA","Polomka"]
[null,null,null,null,null,null,null,null,null,null,null,null,"45.","Gostkowski","Lukasz","POL",1987,"MA","KB GOCH BYTOW"]
[null,null,null,null,null,null,null,null,null,null,null,null,"46.","Gozdz","Monika","POL",1980,"ŽA","TKN Tatra Team"]
[null,null,null,null,null,null,null,null,null,null,null,null,"47.","Grácik","Eduard","SVK",1958,"MB","HAPPY FEET"]
[null,null,null,null,null,null,null,null,null,null,null,null,"48.","Greš","Oskar","SVK",1977,"MA","Košice"]
[null,null,null,null,null,null,null,null,null,null,null,null,"49.","Grossmann","Branislav","SVK",1988,"MA","Kremnica"]
[null,null,null,null,null,null,null,null,null,null,null,null,"50.","Grubarek","Dariusz","POL",1969,"MB","SZAFLARY"]
[null,null,null,null,null,null,null,null,null,null,null,null,"51.","Hajduk","Piotr","POL",1987,"MA","Kraków"]
[null,null,null,null,null,null,null,null,null,null,null,null,"52.","Hanák","Ivan","SVK",1993,"MA","Spišská Belá"]
[null,null,null,null,null,null,null,null,null,null,null,null,"53.","Hanecak","Marcel","SVK",1981,"MA","Bezecky Klub Stara Lubovna"]
[null,null,null,null,null,null,null,null,null,null,null,null,"54.","Hanobik","Martin","SVK",1990,"MA","Zbojnícka chata"]
[null,null,null,null,null,null,null,null,null,null,null,null,"55.","Havrila","Roman","SVK",1980,"MA","bez klubu"]
[null,null,null,null,null,null,null,null,null,null,null,null,"56.","Heldák","František","SVK",1989,"MA","Spišská Belá"]
[null,null,null,null,null,null,null,null,null,null,null,null,"57.","Henček","Emil","SVK",1992,"MA","Active life"]
[null,null,null,null,null,null,null,null,null,null,null,null,"58.","Hlaváč","Peter","SVK",1974,"MB","Brasko team"]
[null,null,null,null,null,null,null,null,null,null,null,null,"59.","Hlavčo","Jozef","SVK",1985,"MA","DYNAFIT"]
[null,null,null,null,null,null,null,null,null,null,null,null,"60.","Hollóši","Roman","SVK",1968,"MB","Zvolen"]
[null,null,null,null,null,null,null,null,null,null,null,null,"61.","Hrabovský","Michal","SVK",1961,"MB","Koškovce"]
[null,null,null,null,null,null,null,null,null,null,null,null,"62.","Hrdina","Libor","CZE",1979,"MA","Děhylov"]
[null,null,null,null,null,null,null,null,null,null,null,null,"63.","Hruška","Roman","CZE",1965,"MB","sokol Loučka"]
[null,null,null,null,null,null,null,null,null,null,null,null,"64.","Hrušková","Jana","SVK",1990,"ŽA","Trenčín"]
[null,null,null,null,null,null,null,null,null,null,null,null,"65.","Hubač","Vlado","SVK",1971,"MB","Ski museum Tatranska Lomnica"]
[null,null,null,null,null,null,null,null,null,null,null,null,"66.","Hudeček","Milan","SVK",1962,"MB","Run for Fun"]
[null,null,null,null,null,null,null,null,null,null,null,null,"67.","Hyclak","Vlado","SVK",1962,"MB","Smokovecká kyselka"]
[null,null,null,null,null,null,null,null,null,null,null,null,"68.","Chovanec","Lukáš","SVK",1984,"MA","Bratislava"]
[null,null,null,null,null,null,null,null,null,null,null,null,"69.","Chovanec","Matúš","SVK",1987,"MA","Sveržov"]
[null,null,null,null,null,null,null,null,null,null,null,null,"70.","Chovanová","Monika","SVK",1987,"ŽA","HK James Dolný Kubín"]
[null,null,null,null,null,null,null,null,null,null,null,null,"71.","Illéš","Martin","SVK",1998,"MA","Spartan Patriot Team Slovakia"]
[null,null,null,null,null,null,null,null,null,null,null,null,"72.","Ivan","Ivo","SVK",1980,"MA","Aj MY sme BEH"]
[null,null,null,null,null,null,null,null,null,null,null,null,"73.","Izák","Ondrej","SVK",1989,"MA","Bratislava"]
[null,null,null,null,null,null,null,null,null,null,null,null,"74.","Jandúch","Jaroslav","SVK",1974,"MB","Bojnice manín"]
[null,null,null,null,null,null,null,null,null,null,null,null,"75.","Janek","Tomáš","CZE",1990,"MA","Bojkovice"]
[null,null,null,null,null,null,null,null,null,null,null,null,"76.","Jankura","Adam","SVK",1989,"MA","TJ Tatranska Lomnica"]
[null,null,null,null,null,null,null,null,null,null,null,null,"77.","Jas","Martin","SVK",1976,"MB","Tucniaky Zilina"]
[null,null,null,null,null,null,null,null,null,null,null,null,"78.","Jaworek","Robert","CZE",1993,"MA","Bohumín"]
[null,null,null,null,null,null,null,null,null,null,null,null,"79.","Junga","Marian","SVK",1969,"MB","BK Lysá pod Makytou"]
[null,null,null,null,null,null,null,null,null,null,null,null,"80.","Junga","Tomáš","SVK",1990,"MA","Praha"]
[null,null,null,null,null,null,null,null,null,null,null,null,"81.","Jurčo","Michal","SVK",1989,"MA","Spišská Belá"]
[null,null,null,null,null,null,null,null,null,null,null,null,"82.","Jurečka","Matúš","SVK",1991,"MA","Závažná Poruba"]
[null,null,null,null,null,null,null,null,null,null,null,null,"83.","Jurovich","Marian","SVK",1970,"MB","Lupienok GT unstop."]
[null,null,null,null,null,null,null,null,null,null,null,null,"84.","Káčer","Juraj","SVK",1990,"MA","Horská služba Malá Fatra"]
[null,null,null,null,null,null,null,null,null,null,null,null,"85.","Kačmarčík","Marek","SVK",1977,"MA","Svit"]
[null,null,null,null,null,null,null,null,null,null,null,null,"86.","Kačmarčík","Tomáš","SVK",1975,"MB","Šport Rysy -INOV8"]
[null,null,null,null,null,null,null,null,null,null,null,null,"87.","Karkoška","Ján","CZE",1978,"MA","Brno"]
[null,null,null,null,null,null,null,null,null,null,null,null,"88.","Kekeňák","Ondrej","SVK",1976,"MB","Banská Bystrica"]
[null,null,null,null,null,null,null,null,null,null,null,null,"89.","Kele","Péter","HUN",1966,"MB","Sálgotarján"]
[null,null,null,null,null,null,null,null,null,null,null,null,"90.","Klobušiaková","Michaela","SVK",1991,"ŽA","Bobrovec"]
[null,null,null,null,null,null,null,null,null,null,null,null,"91.","Klobušník","Peter","SVK",1985,"MA","JAMES SPIŠ"]
[null,null,null,null,null,null,null,null,null,null,null,null,"92.","Konečný","Dušan","SVK",1978,"MA","SC 1896 Štrbske Pleso"]
[null,null,null,null,null,null,null,null,null,null,null,null,"93.","Kordík","Michael","SVK",1979,"MA","Košice"]
[null,null,null,null,null,null,null,null,null,null,null,null,"94.","Korytiaková","Katarina","SVK",1994,"ŽA","Útulňa Andrejcová"]
[null,null,null,null,null,null,null,null,null,null,null,null,"95.","Kostič","Jozef","SVK",1962,"MB","Revúca"]
[null,null,null,null,null,null,null,null,null,null,null,null,"96.","Kotian","Albín","SVK",1969,"MB","La Putika"]
[null,null,null,null,null,null,null,null,null,null,null,null,"97.","Kouřil","Jaroslav","CZE",1980,"MA","neběžecký kroužek"]
[null,null,null,null,null,null,null,null,null,null,null,null,"98.","Krawczyk","Pawel","POL",1977,"MA","Kraków"]
[null,null,null,null,null,null,null,null,null,null,null,null,"99.","Krejzlík","Tomáš","CZE",1990,"MA","Wolfpack Mountain Sports"]
[null,null,null,null,null,null,null,null,null,null,null,null,"100.","Krchníková","Zuzana","SVK",1991,"ŽA","Bratislava"]
[null,null,null,null,null,null,null,null,null,null,null,null,"101.","Krška","Vladimír","SVK",1973,"MB","Klub priateľov športu"]
[null,null,null,null,null,null,null,null,null,null,null,null,"102.","Kruppa","Martin","SVK",1980,"MA","KBBS Turčianske Teplice"]
[null,null,null,null,null,null,null,null,null,null,null,null,"103.","Krzeminski","Jerzy","POL",1987,"MA"]
[null,null,null,null,null,null,null,null,null,null,null,null,"104.","Kubin","Ireneusz","POL",1972,"MB","TG Sokół Zakopane"]
[null,null,null,null,null,null,null,null,null,null,null,null,"105.","Kucháriková","Michaela","SVK",1992,"ŽA","Liptovský Mikuláš"]
[null,null,null,null,null,null,null,null,null,null,null,null,"106.","Kuchtak","Petre","SVK",1983,"MA","Zakamenne"]
[null,null,null,null,null,null,null,null,null,null,null,null,"107.","Kujalanskas","Vadim","POL",1971,"MB","Visegrad Maraton Rytro"]
[null,null,null,null,null,null,null,null,null,null,null,null,"108.","Laffers","Richard","SVK",1980,"MA","HO TJ TATRAN SUČANY"]
[null,null,null,null,null,null,null,null,null,null,null,null,"109.","Lajcha","Michal","SVK",1984,"MA","TJ Ostrý Grúň"]
[null,null,null,null,null,null,null,null,null,null,null,null,"110.","Lesaj","Martin","SVK",1975,"MB","Festival Horyzonty"]
[null,null,null,null,null,null,null,null,null,null,null,null,"111.","Levocký","Ondrej","SVK",1981,"MA","Batizovce"]
[null,null,null,null,null,null,null,null,null,null,null,null,"112.","Longauer","Zdeno","SVK",1972,"MB","Krizna krizom krazom"]
[null,null,null,null,null,null,null,null,null,null,null,null,"113.","Lučanský","Patrik","SVK",1993,"MA","Husky Racing Team"]
[null,null,null,null,null,null,null,null,null,null,null,null,"114.","Lyjak","Olga","POL",1980,"ŽA","biegamwgorach.pl"]
[null,null,null,null,null,null,null,null,null,null,null,null,"115.","Lysák","Radim","CZE",1960,"MB","Ostrava"]
[null,null,null,null,null,null,null,null,null,null,null,null,"116.","Macku","Milan","CZE",1984,"MA","Team P&G"]
[null,null,null,null,null,null,null,null,null,null,null,null,"117.","Maliňák","Tomáš","CZE",1971,"MB","Rožnov"]
[null,null,null,null,null,null,null,null,null,null,null,null,"118.","Marko","Jozef","SVK",1971,"MB","Prievidza"]
[null,null,null,null,null,null,null,null,null,null,null,null,"119.","Matas","Zbyňek","CZE",1982,"MA","Netunice"]
[null,null,null,null,null,null,null,null,null,null,null,null,"120.","Máťuš","Martin","SVK",1989,"MA","ŠK Račišdorf"]
[null,null,null,null,null,null,null,null,null,null,null,null,"121.","Mikuláš","Radovan","SVK",1977,"MA","HK James DK"]
[null,null,null,null,null,null,null,null,null,null,null,null,"122.","Milata","Patrik","SVK",1988,"MA","Extreme Obstacle Runners"]
[null,null,null,null,null,null,null,null,null,null,null,null,"123.","Mitala","Jozef","SVK",1989,"MA","Partizánske"]
[null,null,null,null,null,null,null,null,null,null,null,null,"124.","Moravcik","Petr","CZE",1981,"MA","Roznov pod Radh."]
[null,null,null,null,null,null,null,null,null,null,null,null,"125.","Múdry","Peter","SVK",1975,"MB","Košice"]
[null,null,null,null,null,null,null,null,null,null,null,null,"126.","Nagy","David","SVK",1967,"MB","Bratislava"]
[null,null,null,null,null,null,null,null,null,null,null,null,"127.","Nováčik","Martin","SVK",1986,"MA","Bratislava"]
[null,null,null,null,null,null,null,null,null,null,null,null,"128.","Nyeki","Katarína","SVK",1984,"ŽA","Flamingos"]
[null,null,null,null,null,null,null,null,null,null,null,null,"129.","Oceľ","Marek","SVK",1984,"MA","Dunajska Luzna"]
[null,null,null,null,null,null,null,null,null,null,null,null,"130.","Orlovský","Matúš","SVK",1986,"MA","Košice"]
[null,null,null,null,null,null,null,null,null,null,null,null,"131.","Orság","Matej","SVK",1987,"MA","ŠK Budimír"]
[null,null,null,null,null,null,null,null,null,null,null,null,"132.","Ovsak","Matus","SVK",1987,"MA","2-3 F"]
[null,null,null,null,null,null,null,null,null,null,null,null,"133.","Pagáč","Michal","SVK",1987,"MA","Poprad"]
[null,null,null,null,null,null,null,null,null,null,null,null,"134.","Pagáčik","Marek","SVK",1978,"MA","Dolný Kubín"]
[null,null,null,null,null,null,null,null,null,null,null,null,"135.","Pachura","Kinga","POL",1976,"ŽA","Mszana Dolna"]
[null,null,null,null,null,null,null,null,null,null,null,null,"136.","Palka","Joanna","POL",1988,"ŽA","BOOT CAMP POLSKA"]
[null,null,null,null,null,null,null,null,null,null,null,null,"137.","Pancurák","Jaroslav","SVK",1981,"MA","Vranovské Vydry"]
[null,null,null,null,null,null,null,null,null,null,null,null,"138.","Parreira","Raquel","POR",1993,"ŽA","Andorinhas"]
[null,null,null,null,null,null,null,null,null,null,null,null,"139.","Paulen","Andrej","SVK",1994,"MA","Žilina"]
[null,null,null,null,null,null,null,null,null,null,null,null,"140.","Pazdera","Marek","CZE",1974,"MB","SPORTILION"]
[null,null,null,null,null,null,null,null,null,null,null,null,"141.","Perháč","Martin","SVK",1985,"MA","Košice"]
[null,null,null,null,null,null,null,null,null,null,null,null,"142.","Peterka","Tomáš","SVK",1985,"MA","Extreme obstacle runners"]
[null,null,null,null,null,null,null,null,null,null,null,null,"143.","Petrovič","Matej","SVK",1995,"MA","LK Opalisko Závažná"]
[null,null,null,null,null,null,null,null,null,null,null,null,"144.","Pettersson","Johan","SWE",1982,"MA","Flamingos"]
[null,null,null,null,null,null,null,null,null,null,null,null,"145.","Piorecki","Michal","POL",1976,"MB","Krakow"]
[null,null,null,null,null,null,null,null,null,null,null,null,"146.","Pisarek","Renata","POL",1970,"ŽA","Krakow"]
[null,null,null,null,null,null,null,null,null,null,null,null,"147.","Prčina","Ivan","SVK",1986,"MA","Dolný Kubín"]
[null,null,null,null,null,null,null,null,null,null,null,null,"148.","Prieložný","Eduard","SVK",1985,"MA","Žilina"]
[null,null,null,null,null,null,null,null,null,null,null,null,"149.","Procházka","Peter","SVK",1987,"MA","Poprad"]
[null,null,null,null,null,null,null,null,null,null,null,null,"150.","Pšenica","Július","CZE",1967,"MB","Zlin"]
[null,null,null,null,null,null,null,null,null,null,null,null,"151.","Radzik","Maciej","POL",1986,"MA","Stary Sącz"]
[null,null,null,null,null,null,null,null,null,null,null,null,"152.","Rajniak","Michal","SVK",1989,"MB","Extreme obstacle runners"]
[null,null,null,null,null,null,null,null,null,null,null,null,"153.","Rysa","Michal","SVK",1976,"MB","TJ Tatran Gerlachov"]
[null,null,null,null,null,null,null,null,null,null,null,null,"154.","Řepa","Vojtěch","CZE",1995,"MA","Bohumín"]
[null,null,null,null,null,null,null,null,null,null,null,null,"155.","Sabisz","Krzysztof","POL",1987,"MA","Bytow"]
[null,null,null,null,null,null,null,null,null,null,null,null,"156.","Sedlák","Alfonz","SVK",1992,"MA","Olcnava"]
[null,null,null,null,null,null,null,null,null,null,null,null,"157.","Sedlář","Robin","CZE",1983,"MA","Petřvald"]
[null,null,null,null,null,null,null,null,null,null,null,null,"158.","Senčák","Martin","SVK",1990,"MA","ProSport Team Košice"]
[null,null,null,null,null,null,null,null,null,null,null,null,"159.","Schmidt","Miroslav","SVK",1972,"MB","MKL Kremnica"]
[null,null,null,null,null,null,null,null,null,null,null,null,"160.","Slavík","Jakub","SVK",1986,"MA","Strečno"]
[null,null,null,null,null,null,null,null,null,null,null,null,"161.","Sopka","Roman","SVK",1978,"MA","Run the World"]
[null,null,null,null,null,null,null,null,null,null,null,null,"162.","Stehlik","Jan","SVK",1985,"MA","DETVA"]
[null,null,null,null,null,null,null,null,null,null,null,null,"163.","Stohl","Richard","SVK",1983,"MA","Vranov nad Toplou"]
[null,null,null,null,null,null,null,null,null,null,null,null,"164.","Stolarczyk","Piotr","POL",1979,"MA","Rdzawka"]
[null,null,null,null,null,null,null,null,null,null,null,null,"165.","Stretavska","Jana","CZE",1991,"ŽA","Flamingos"]
[null,null,null,null,null,null,null,null,null,null,null,null,"166.","Strežo","Mike","SVK",1990,"MA","Bežecký klub DK"]
[null,null,null,null,null,null,null,null,null,null,null,null,"167.","Surničin","Marián","SVK",1985,"MA","Bikesport Humenné"]
[null,null,null,null,null,null,null,null,null,null,null,null,"168.","Sustr","Jan","SVK",1978,"MA","Hk Zula"]
[null,null,null,null,null,null,null,null,null,null,null,null,"169.","Szallay","Martin","SVK",1990,"MA","Andorinhas"]
[null,null,null,null,null,null,null,null,null,null,null,null,"170.","Szlachtowski","Andrzej","POL",1969,"MB","Novy Targ"]
[null,null,null,null,null,null,null,null,null,null,null,null,"171.","Šiarnik","Jakub","SVK",1994,"MA","TJ Družba Smrečany"]
[null,null,null,null,null,null,null,null,null,null,null,null,"172.","Šmahlík","Radomír","CZE",1974,"MB","Ostrava"]
[null,null,null,null,null,null,null,null,null,null,null,null,"173.","Šmollová","Monika","SVK",1993,"ŽA","Liptovský Mikuláš"]
[null,null,null,null,null,null,null,null,null,null,null,null,"174.","Šmollová","Bibiana","SVK",1965,"ŽA","Liptovský Mikuláš"]
[null,null,null,null,null,null,null,null,null,null,null,null,"175.","Šnábl","Petr","CZE",1984,"MA","Běžecký klub České spořitelny"]
[null,null,null,null,null,null,null,null,null,null,null,null,"176.","Šubert","Pavel","CZE",1974,"MB","horalove"]
[null,null,null,null,null,null,null,null,null,null,null,null,"177.","Šurina","Marek","SVK",1989,"MA","Útulňa Andrejcová"]
[null,null,null,null,null,null,null,null,null,null,null,null,"178.","Švolík","Lukáš","SVK",1989,"MA","Zbojnícka chata"]
[null,null,null,null,null,null,null,null,null,null,null,null,"179.","Tajcnár","Tomáš","SVK",1987,"MA","ŠKP PKF Trnava"]
[null,null,null,null,null,null,null,null,null,null,null,null,"180.","Taragel","Valér","SVK",1988,"MA","Dukla Bratislava"]
[null,null,null,null,null,null,null,null,null,null,null,null,"181.","Telička","Marek","CZE",1972,"MB","Chvalčov"]
[null,null,null,null,null,null,null,null,null,null,null,null,"182.","Temecki","Grzegorz","POL",1981,"MA","Nowy targ"]
[null,null,null,null,null,null,null,null,null,null,null,null,"183.","Tripšanský","Michal","SVK",1993,"MA","Spišská Nová Ves"]
[null,null,null,null,null,null,null,null,null,null,null,null,"184.","Turčan","Jakub","SVK",1989,"MA","Hory v trenkách"]
[null,null,null,null,null,null,null,null,null,null,null,null,"185.","Turek","Martin","CZE",1980,"MA","www.zkisova-skolabehu.cz"]
[null,null,null,null,null,null,null,null,null,null,null,null,"186.","Uglaj","Tomas","CZE",1980,"MA","RaidLight Team"]
[null,null,null,null,null,null,null,null,null,null,null,null,"187.","Uglaj","Petr","CZE",1984,"MA","Flamingos"]
[null,null,null,null,null,null,null,null,null,null,null,null,"188.","Ulbricht","Anton","SVK",1962,"MB","Smokovecká kyselka"]
[null,null,null,null,null,null,null,null,null,null,null,null,"189.","Urban","Tomáš","SVK",1987,"MA","pre radosť"]
[null,null,null,null,null,null,null,null,null,null,null,null,"190.","Valocka","Milan","SVK",1960,"MB","Marathon BB team: Zvolen"]
[null,null,null,null,null,null,null,null,null,null,null,null,"191.","Vechter","Michal","SVK",1991,"MA","Východná"]
[null,null,null,null,null,null,null,null,null,null,null,null,"192.","Vereb","Tomáš","SVK",1974,"MB","Košice"]
[null,null,null,null,null,null,null,null,null,null,null,null,"193.","Vlčan","Ľudovít","SVK",1975,"MB","luvit Partizánske"]
[null,null,null,null,null,null,null,null,null,null,null,null,"194.","Vlček","Milan","SVK",1983,"MA","StVPS - veolia - voda"]
[null,null,null,null,null,null,null,null,null,null,null,null,"195.","Vošček","Jakub","SVK",1994,"MA","Poprad"]
[null,null,null,null,null,null,null,null,null,null,null,null,"196.","Vybíral","Lukáš","CZE",1987,"MB","Silný Tým Uničov"]
[null,null,null,null,null,null,null,null,null,null,null,null,"197.","Zajíc","Petr","CZE",1978,"MA","alaj-barjaktar"]
[null,null,null,null,null,null,null,null,null,null,null,null,"198.","Zatroch","Matej","SVK",1978,"MA","Poprad"]
[null,null,null,null,null,null,null,null,null,null,null,null,"199.","Zelená","Marie","CZE",1985,"ŽA","Uherský Brod"]
[null,null,null,null,null,null,null,null,null,null,null,null,"200.","Zelina","Milan","SVK",1985,"MA","SK PKF"]
[null,null,null,null,null,null,null,null,null,null,null,null,"201.","Repel","Adam","SVK",1994,"MA","Poprad"]
[null,null,null,null,null,null,null,null,null,null,null,null,"202.","Škřička","Jan","CZE",1978,"MA","SK Nové Město na Moravě"]